Publisher Label,Publisher URI,"Supplier ID","Supplier","Invoice No.","Amount (£)","Purpose","Transaction Number","Payment Date","Organisational Unit","Cost Centre(T)","Internal Category Number"
"Wolverhampton City Council","http://opendatacommunities.org/id/metropolitan-district-council/wolverhampton","706935","Royal Mail","9055690588","120.97","Comms - Postage","130199924","12/01/2018","Business Support","People�s Business Support","R4503"
"Wolverhampton City Council","http://opendatacommunities.org/id/metropolitan-district-council/wolverhampton","706935","Royal Mail","9055690595","-9.75","Comms - Postage","130199925","12/01/2018","Business Support","People�s Business Support","R4503"
"Wolverhampton City Council","http://opendatacommunities.org/id/metropolitan-district-council/wolverhampton","706936","Royal Mail Group PLC","9055712785","52.35","Comms - Postage","130199929","12/01/2018","Revenues & Benefits","Revenues","R4503"
"Wolverhampton City Council","http://opendatacommunities.org/id/metropolitan-district-council/wolverhampton","706936","Royal Mail Group PLC","9055709107","1.60","Comms - Postage","130199928","10/01/2018","Revenues & Benefits","Revenues","R4503"
"Wolverhampton City Council","http://opendatacommunities.org/id/metropolitan-district-council/wolverhampton","706936","Royal Mail Group PLC","9055709107","-1.60","Comms - Postage","130199928","10/01/2018","Revenues & Benefits","Revenues","R4503"
"Wolverhampton City Council","http://opendatacommunities.org/id/metropolitan-district-council/wolverhampton","706936","Royal Mail Group PLC","9055709107","1.60","Comms - Postage","130199928","10/01/2018","Revenues & Benefits","Revenues","R4503"
"Wolverhampton City Council","http://opendatacommunities.org/id/metropolitan-district-council/wolverhampton","706936","Royal Mail Group PLC","9055784988","-636.53","Comms - Postage","130200843","24/01/2018","ICTS","Document Centre - General","R4503"
"Wolverhampton City Council","http://opendatacommunities.org/id/metropolitan-district-council/wolverhampton","706936","Royal Mail Group PLC","1801979313","265.00","Comms - Postage","130201758","12/01/2018","Parking Services","Parking Enforcement","R4503"
"Wolverhampton City Council","http://opendatacommunities.org/id/metropolitan-district-council/wolverhampton","706936","Royal Mail Group PLC","9055880090","309.55","Comms - Postage","190415492","26/01/2018","Democratic Services","Electoral Registration","R4503"
"Wolverhampton City Council","http://opendatacommunities.org/id/metropolitan-district-council/wolverhampton","706936","Royal Mail Group PLC","9055714831","1,566.12","Comms - Postage","130199930","12/01/2018","Revenues & Benefits","Revenues","R4503"
"Wolverhampton City Council","http://opendatacommunities.org/id/metropolitan-district-council/wolverhampton","706936","Royal Mail Group PLC","9055670314","1,575.76","Comms - Postage","130199926","10/01/2018","Revenues & Benefits","Revenues","R4503"
"Wolverhampton City Council","http://opendatacommunities.org/id/metropolitan-district-council/wolverhampton","706936","Royal Mail Group PLC","9055670314","-1,575.76","Comms - Postage","130199926","10/01/2018","Revenues & Benefits","Revenues","R4503"
"Wolverhampton City Council","http://opendatacommunities.org/id/metropolitan-district-council/wolverhampton","706936","Royal Mail Group PLC","9055670314","1,574.69","Comms - Postage","130199926","10/01/2018","Revenues & Benefits","Revenues","R4503"
"Wolverhampton City Council","http://opendatacommunities.org/id/metropolitan-district-council/wolverhampton","706936","Royal Mail Group PLC","9055670314","1.07","Comms - Postage","130199926","10/01/2018","Revenues & Benefits","Revenues","R4503"
"Wolverhampton City Council","http://opendatacommunities.org/id/metropolitan-district-council/wolverhampton","706936","Royal Mail Group PLC","9055818424","54.00","Comms - Postage","190415491","26/01/2018","Democratic Services","Electoral Registration","R4503"
"Wolverhampton City Council","http://opendatacommunities.org/id/metropolitan-district-council/wolverhampton","706936","Royal Mail Group PLC","9055741903","1,222.20","Comms - Postage","130200550","17/01/2018","ICTS","Document Centre - General","R4503"
"Wolverhampton City Council","http://opendatacommunities.org/id/metropolitan-district-council/wolverhampton","706936","Royal Mail Group PLC","9055723829","0.78","Comms - Postage","130199931","19/01/2018","Catering","Education Catering - General Overheads","R4503"
"Wolverhampton City Council","http://opendatacommunities.org/id/metropolitan-district-council/wolverhampton","706936","Royal Mail Group PLC","9055723829","0.78","Comms - Postage","130199931","19/01/2018","Cleaning","Cleaning of Buildings - General","R4503"
"Wolverhampton City Council","http://opendatacommunities.org/id/metropolitan-district-council/wolverhampton","706936","Royal Mail Group PLC","9055845376","7.44","Comms - Postage","190415493","26/01/2018","Democratic Services","Electoral Registration","R4503"
"Wolverhampton City Council","http://opendatacommunities.org/id/metropolitan-district-council/wolverhampton","706936","Royal Mail Group PLC","9055757460","0.02","Comms - Postage","130200842","24/01/2018","Revenues & Benefits","Revenues","R4503"
"Wolverhampton City Council","http://opendatacommunities.org/id/metropolitan-district-council/wolverhampton","706936","Royal Mail Group PLC","9055757460","0.02","Comms - Postage","130200842","24/01/2018","Revenues & Benefits","Revenues","R4503"
"Wolverhampton City Council","http://opendatacommunities.org/id/metropolitan-district-council/wolverhampton","706936","Royal Mail Group PLC","9055757460","939.02","Comms - Postage","130200842","24/01/2018","Revenues & Benefits","Revenues","R4503"
"Wolverhampton City Council","http://opendatacommunities.org/id/metropolitan-district-council/wolverhampton","706936","Royal Mail Group PLC","9055726707","8.97","Comms - Postage","130201592","12/01/2018","Human Resources","HR Advice","R4503"
"Wolverhampton City Council","http://opendatacommunities.org/id/metropolitan-district-council/wolverhampton","706936","Royal Mail Group PLC","9055701512","2,240.33","Comms - Postage","130199927","10/01/2018","ICTS","Document Centre - General","R4503"
"Wolverhampton City Council","http://opendatacommunities.org/id/metropolitan-district-council/wolverhampton","706936","Royal Mail Group PLC","9055654779","2,934.77","Comms - Postage","130199116","05/01/2018","ICTS","Document Centre - General","R4503"
"Wolverhampton City Council","http://opendatacommunities.org/id/metropolitan-district-council/wolverhampton","706975","Ryans Gig Guide","WC12/1/2018","1,000.00","Marketing \ Non-staff advertising","130199932","10/01/2018","Visitor Economy","Civic Halls Non-Direct Event Management Account","R4317"
"Wolverhampton City Council","http://opendatacommunities.org/id/metropolitan-district-council/wolverhampton","706987","S B Waste Management & Recycling Limited","108869","2,540.00","Waste Management","130201936","26/01/2018","Highways Maintenance","Patching","R2703"
"Wolverhampton City Council","http://opendatacommunities.org/id/metropolitan-district-council/wolverhampton","706987","S B Waste Management & Recycling Limited","108872","592.56","TPP - Waste Disposal","130201938","26/01/2018","Independent Living Service","Independent Living Service","R5003"
"Wolverhampton City Council","http://opendatacommunities.org/id/metropolitan-district-council/wolverhampton","706987","S B Waste Management & Recycling Limited","108868","46.00","TPP - Waste Disposal","130201935","31/01/2018","Environmental Maintenance","Direct Schools","R5003"
"Wolverhampton City Council","http://opendatacommunities.org/id/metropolitan-district-council/wolverhampton","706987","S B Waste Management & Recycling Limited","108870","158.00","Waste Management","130201937","26/01/2018","Highways Maintenance","Patching","R2703"
"Wolverhampton City Council","http://opendatacommunities.org/id/metropolitan-district-council/wolverhampton","707008","S M  Builders","17/0011/DFDb","6,350.00","Grants paid out","190415740","26/01/2018","","Disabled Facilities Grants","C5000"
"Wolverhampton City Council","http://opendatacommunities.org/id/metropolitan-district-council/wolverhampton","707008","S M  Builders","16/0146/DFGa","9,000.00","Grants paid out","190415738","26/01/2018","","Disabled Facilities Grants","C5000"
"Wolverhampton City Council","http://opendatacommunities.org/id/metropolitan-district-council/wolverhampton","707023","S. & J. Pritchard Landscapes Limited","156","125.00","R&M - Departmental response (external)","130203376","31/01/2018","Environmental Maintenance","Parks - South West Area Management","R2003"
"Wolverhampton City Council","http://opendatacommunities.org/id/metropolitan-district-council/wolverhampton","707023","S. & J. Pritchard Landscapes Limited","154","275.00","R&M - Departmental response (external)","130202492","24/01/2018","Environmental Maintenance","Parks - East Area Management","R2003"
"Wolverhampton City Council","http://opendatacommunities.org/id/metropolitan-district-council/wolverhampton","707023","S. & J. Pritchard Landscapes Limited","155","725.00","Cleaning Supplies and Materials","130202493","24/01/2018","Environmental Maintenance","Ground Maintenance West","R2705"
"Wolverhampton City Council","http://opendatacommunities.org/id/metropolitan-district-council/wolverhampton","707023","S. & J. Pritchard Landscapes Limited","152","625.00","R&M - Departmental response (external)","130201941","17/01/2018","Environmental Maintenance","Parks - South West Area Management","R2003"
"Wolverhampton City Council","http://opendatacommunities.org/id/metropolitan-district-council/wolverhampton","707023","S. & J. Pritchard Landscapes Limited","153","825.00","R&M - Departmental planned (external)","130202491","24/01/2018","Environmental Maintenance","Parks - East Area Management","R2001"
"Wolverhampton City Council","http://opendatacommunities.org/id/metropolitan-district-council/wolverhampton","707023","S. & J. Pritchard Landscapes Limited","151","425.00","R&M - Departmental response (external)","130201940","19/01/2018","Environmental Maintenance","Parks - East Area Management","R2003"
"Wolverhampton City Council","http://opendatacommunities.org/id/metropolitan-district-council/wolverhampton","707023","S. & J. Pritchard Landscapes Limited","157","185.00","R&M - Departmental response (external)","130203377","31/01/2018","Environmental Maintenance","Parks - East Area Management","R2003"
"Wolverhampton City Council","http://opendatacommunities.org/id/metropolitan-district-council/wolverhampton","707023","S. & J. Pritchard Landscapes Limited","150","30.00","R&M - Departmental response (external)","130201939","17/01/2018","Environmental Maintenance","Parks - South West Area Management","R2003"
"Wolverhampton City Council","http://opendatacommunities.org/id/metropolitan-district-council/wolverhampton","707035","S.S. Sidhu","0444","176.90","Books","130200695","10/01/2018","Strategic Organisation Development","Reference Library","R4309"
"Wolverhampton City Council","http://opendatacommunities.org/id/metropolitan-district-council/wolverhampton","707035","S.S. Sidhu","0448","153.10","Books","130202775","31/01/2018","Strategic Organisation Development","Reference Library","R4309"
"Wolverhampton City Council","http://opendatacommunities.org/id/metropolitan-district-council/wolverhampton","707035","S.S. Sidhu","0447","88.64","Books","130202132","24/01/2018","Strategic Organisation Development","Reference Library","R4309"
"Wolverhampton City Council","http://opendatacommunities.org/id/metropolitan-district-council/wolverhampton","707035","S.S. Sidhu","0445","158.66","Books","130200696","10/01/2018","Strategic Organisation Development","Reference Library","R4309"
"Wolverhampton City Council","http://opendatacommunities.org/id/metropolitan-district-council/wolverhampton","707035","S.S. Sidhu","0446","167.33","Books","130202131","19/01/2018","Strategic Organisation Development","Reference Library","R4309"
"Wolverhampton City Council","http://opendatacommunities.org/id/metropolitan-district-council/wolverhampton","707069","Compasss Minerals UK Ltd","460791","3,155.91","Materials","130200551","05/01/2018","Highways Maintenance","Winter Maintenance","R4007"
"Wolverhampton City Council","http://opendatacommunities.org/id/metropolitan-district-council/wolverhampton","707069","Compasss Minerals UK Ltd","460335","4,137.39","Materials","130199934","05/01/2018","Highways Maintenance","Winter Maintenance","R4007"
"Wolverhampton City Council","http://opendatacommunities.org/id/metropolitan-district-council/wolverhampton","707069","Compasss Minerals UK Ltd","461336","4,206.38","Materials","130201397","12/01/2018","Highways Maintenance","Winter Maintenance","R4007"
"Wolverhampton City Council","http://opendatacommunities.org/id/metropolitan-district-council/wolverhampton","707069","Compasss Minerals UK Ltd","461427","1,040.72","Materials","130201942","17/01/2018","Highways Maintenance","Winter Maintenance","R4007"
"Wolverhampton City Council","http://opendatacommunities.org/id/metropolitan-district-council/wolverhampton","707069","Compasss Minerals UK Ltd","461067","2,100.19","Materials","130201110","10/01/2018","Highways Maintenance","Winter Maintenance","R4007"
"Wolverhampton City Council","http://opendatacommunities.org/id/metropolitan-district-council/wolverhampton","707069","Compasss Minerals UK Ltd","460221","4,202.63","Materials","130199933","05/01/2018","Highways Maintenance","Winter Maintenance","R4007"
"Wolverhampton City Council","http://opendatacommunities.org/id/metropolitan-district-council/wolverhampton","707069","Compasss Minerals UK Ltd","460434","2,111.44","Materials","130199935","05/01/2018","Highways Maintenance","Winter Maintenance","R4007"
"Wolverhampton City Council","http://opendatacommunities.org/id/metropolitan-district-council/wolverhampton","707069","Compasss Minerals UK Ltd","461219","2,112.19","Materials","130201395","12/01/2018","Highways Maintenance","Winter Maintenance","R4007"
"Wolverhampton City Council","http://opendatacommunities.org/id/metropolitan-district-council/wolverhampton","707069","Compasss Minerals UK Ltd","460648","2,084.44","Materials","130199937","03/01/2018","Highways Maintenance","Winter Maintenance","R4007"
"Wolverhampton City Council","http://opendatacommunities.org/id/metropolitan-district-council/wolverhampton","707069","Compasss Minerals UK Ltd","461273","2,120.43","Materials","130201396","12/01/2018","Highways Maintenance","Winter Maintenance","R4007"
"Wolverhampton City Council","http://opendatacommunities.org/id/metropolitan-district-council/wolverhampton","707069","Compasss Minerals UK Ltd","461112","123.60","Materials","130200972","05/01/2018","Markets","Wolverhampton Indoor and Open Market","R4007"
"Wolverhampton City Council","http://opendatacommunities.org/id/metropolitan-district-council/wolverhampton","707069","Compasss Minerals UK Ltd","461051","618.00","Materials","130200845","05/01/2018","Markets","Bilston Market and Licensed Operations","R4007"
"Wolverhampton City Council","http://opendatacommunities.org/id/metropolitan-district-council/wolverhampton","707069","Compasss Minerals UK Ltd","460938","7,317.29","Materials","130201109","10/01/2018","Highways Maintenance","Winter Maintenance","R4007"
"Wolverhampton City Council","http://opendatacommunities.org/id/metropolitan-district-council/wolverhampton","707069","Compasss Minerals UK Ltd","461043","123.60","Materials","130200844","05/01/2018","Markets","Wolverhampton Indoor and Open Market","R4007"
"Wolverhampton City Council","http://opendatacommunities.org/id/metropolitan-district-council/wolverhampton","707069","Compasss Minerals UK Ltd","460549","3,152.17","Materials","130199936","05/01/2018","Highways Maintenance","Winter Maintenance","R4007"
"Wolverhampton City Council","http://opendatacommunities.org/id/metropolitan-district-council/wolverhampton","707077","Sanctuary Personnel Limited","INV00212288","1,420.80","Agency Staff","130189566","05/01/2018","Child Protection","MASH","R1100"
"Wolverhampton City Council","http://opendatacommunities.org/id/metropolitan-district-council/wolverhampton","707077","Sanctuary Personnel Limited","INV00231329","1,420.80","Agency Staff","130197096","05/01/2018","Child Protection","MASH","R1100"
"Wolverhampton City Council","http://opendatacommunities.org/id/metropolitan-district-council/wolverhampton","707077","Sanctuary Personnel Limited","INV00227682","1,420.80","Agency Staff","130195369","05/01/2018","Child Protection","MASH","R1100"
"Wolverhampton City Council","http://opendatacommunities.org/id/metropolitan-district-council/wolverhampton","707077","Sanctuary Personnel Limited","INV00243510","792.00","Agency Staff","130201112","10/01/2018","Child Protection","MASH","R1100"
"Wolverhampton City Council","http://opendatacommunities.org/id/metropolitan-district-council/wolverhampton","707077","Sanctuary Personnel Limited","INV00247665","1,424.50","Agency Staff","130203021","24/01/2018","Child Protection","MASH","R1100"
"Wolverhampton City Council","http://opendatacommunities.org/id/metropolitan-district-council/wolverhampton","707077","Sanctuary Personnel Limited","INV00244788","23.60","Agency Staff","130202138","19/01/2018","Child Protection","MASH","R1100"
"Wolverhampton City Council","http://opendatacommunities.org/id/metropolitan-district-council/wolverhampton","707077","Sanctuary Personnel Limited","INV00244787","864.00","Agency Staff","130202137","19/01/2018","Child Protection","MASH","R1100"
"Wolverhampton City Council","http://opendatacommunities.org/id/metropolitan-district-council/wolverhampton","707077","Sanctuary Personnel Limited","INV00240052","1,420.80","Agency Staff","130199965","03/01/2018","Child Protection","MASH","R1100"
"Wolverhampton City Council","http://opendatacommunities.org/id/metropolitan-district-council/wolverhampton","707077","Sanctuary Personnel Limited","INV00238050","1,424.50","Agency Staff","130199958","03/01/2018","Child Protection","MASH","R1100"
"Wolverhampton City Council","http://opendatacommunities.org/id/metropolitan-district-council/wolverhampton","707077","Sanctuary Personnel Limited","INV00240047","7.12","Agency Staff","130199962","03/01/2018","Child Protection","MASH","R1100"
"Wolverhampton City Council","http://opendatacommunities.org/id/metropolitan-district-council/wolverhampton","707077","Sanctuary Personnel Limited","INV00238051","1,332.00","Agency Staff","130199959","03/01/2018","Child Protection","MASH","R1100"
"Wolverhampton City Council","http://opendatacommunities.org/id/metropolitan-district-council/wolverhampton","707077","Sanctuary Personnel Limited","INV00226453","1,332.00","Agency Staff","130199952","03/01/2018","Child Protection","MASH","R1100"
"Wolverhampton City Council","http://opendatacommunities.org/id/metropolitan-district-council/wolverhampton","707077","Sanctuary Personnel Limited","INV00214032","1,332.00","Agency Staff","130199942","03/01/2018","Child Protection","MASH","R1100"
"Wolverhampton City Council","http://opendatacommunities.org/id/metropolitan-district-council/wolverhampton","707077","Sanctuary Personnel Limited","INV00219875","21.84","Agency Staff","130199946","03/01/2018","Child Protection","MASH","R1100"
"Wolverhampton City Council","http://opendatacommunities.org/id/metropolitan-district-council/wolverhampton","707077","Sanctuary Personnel Limited","INV00191972","1,152.00","Agency Staff","130179618","31/01/2018","Child Protection","MASH","R1100"
"Wolverhampton City Council","http://opendatacommunities.org/id/metropolitan-district-council/wolverhampton","707077","Sanctuary Personnel Limited","INV00222590","864.00","Agency Staff","130193725","05/01/2018","Child Protection","MASH","R1100"
"Wolverhampton City Council","http://opendatacommunities.org/id/metropolitan-district-council/wolverhampton","707077","Sanctuary Personnel Limited","INV00214030","1,420.80","Agency Staff","130190335","05/01/2018","Child Protection","MASH","R1100"
"Wolverhampton City Council","http://opendatacommunities.org/id/metropolitan-district-council/wolverhampton","707077","Sanctuary Personnel Limited","INV00231327","1,420.80","Agency Staff","130197095","05/01/2018","Child Protection","MASH","R1100"
"Wolverhampton City Council","http://opendatacommunities.org/id/metropolitan-district-council/wolverhampton","707077","Sanctuary Personnel Limited","INV00244789","864.00","Agency Staff","130202139","19/01/2018","Child Protection","MASH","R1100"
"Wolverhampton City Council","http://opendatacommunities.org/id/metropolitan-district-council/wolverhampton","707077","Sanctuary Personnel Limited","INV00238053","21.28","Agency Staff","130199961","03/01/2018","Child Protection","MASH","R1100"
"Wolverhampton City Council","http://opendatacommunities.org/id/metropolitan-district-council/wolverhampton","707077","Sanctuary Personnel Limited","INV00240051","1,424.50","Agency Staff","130199964","03/01/2018","Child Protection","MASH","R1100"
"Wolverhampton City Council","http://opendatacommunities.org/id/metropolitan-district-council/wolverhampton","707077","Sanctuary Personnel Limited","INV00240049","1,080.00","Agency Staff","130199963","03/01/2018","Child Protection","MASH","R1100"
"Wolverhampton City Council","http://opendatacommunities.org/id/metropolitan-district-council/wolverhampton","707077","Sanctuary Personnel Limited","INV00226452","43.67","Agency Staff","130199951","03/01/2018","Child Protection","MASH","R1100"
"Wolverhampton City Council","http://opendatacommunities.org/id/metropolitan-district-council/wolverhampton","707077","Sanctuary Personnel Limited","INV00227681","1,332.00","Agency Staff","130199954","03/01/2018","Child Protection","MASH","R1100"
"Wolverhampton City Council","http://opendatacommunities.org/id/metropolitan-district-council/wolverhampton","707077","Sanctuary Personnel Limited","INV00214028","73.18","Agency Staff","130199940","03/01/2018","Child Protection","MASH","R1100"
"Wolverhampton City Council","http://opendatacommunities.org/id/metropolitan-district-council/wolverhampton","707077","Sanctuary Personnel Limited","INV00219873","1,332.00","Agency Staff","130199945","03/01/2018","Child Protection","MASH","R1100"
"Wolverhampton City Council","http://opendatacommunities.org/id/metropolitan-district-council/wolverhampton","707077","Sanctuary Personnel Limited","INV00249819","1,424.50","Agency Staff","130203910","31/01/2018","Child Protection","MASH","R1100"
"Wolverhampton City Council","http://opendatacommunities.org/id/metropolitan-district-council/wolverhampton","707077","Sanctuary Personnel Limited","INV00219877","1,420.80","Agency Staff","130192133","05/01/2018","Child Protection","MASH","R1100"
"Wolverhampton City Council","http://opendatacommunities.org/id/metropolitan-district-council/wolverhampton","707077","Sanctuary Personnel Limited","INV00208530","1,420.80","Agency Staff","130188146","05/01/2018","Child Protection","MASH","R1100"
"Wolverhampton City Council","http://opendatacommunities.org/id/metropolitan-district-council/wolverhampton","707077","Sanctuary Personnel Limited","INV00216401","1,152.00","Agency Staff","130191208","05/01/2018","Child Protection","MASH","R1100"
"Wolverhampton City Council","http://opendatacommunities.org/id/metropolitan-district-council/wolverhampton","707077","Sanctuary Personnel Limited","INV00244786","866.25","Agency Staff","130202136","19/01/2018","Child Protection","MASH","R1100"
"Wolverhampton City Council","http://opendatacommunities.org/id/metropolitan-district-council/wolverhampton","707077","Sanctuary Personnel Limited","INV00244783","576.00","Agency Staff","130202133","17/01/2018","Child Protection","MASH","R1100"
"Wolverhampton City Council","http://opendatacommunities.org/id/metropolitan-district-council/wolverhampton","707077","Sanctuary Personnel Limited","INV00249822","1,062.00","Agency Staff","130203912","31/01/2018","Child Protection","MASH","R1100"
"Wolverhampton City Council","http://opendatacommunities.org/id/metropolitan-district-council/wolverhampton","707077","Sanctuary Personnel Limited","INV00220813","1,332.00","Agency Staff","130199948","03/01/2018","Child Protection","MASH","R1100"
"Wolverhampton City Council","http://opendatacommunities.org/id/metropolitan-district-council/wolverhampton","707077","Sanctuary Personnel Limited","INV00226455","13.06","Agency Staff","130199953","03/01/2018","Child Protection","MASH","R1100"
"Wolverhampton City Council","http://opendatacommunities.org/id/metropolitan-district-council/wolverhampton","707077","Sanctuary Personnel Limited","INV00231328","1,332.00","Agency Staff","130199955","03/01/2018","Child Protection","MASH","R1100"
"Wolverhampton City Council","http://opendatacommunities.org/id/metropolitan-district-council/wolverhampton","707077","Sanctuary Personnel Limited","INV00212287","1,332.00","Agency Staff","130199938","03/01/2018","Child Protection","MASH","R1100"
"Wolverhampton City Council","http://opendatacommunities.org/id/metropolitan-district-council/wolverhampton","707077","Sanctuary Personnel Limited","INV00214034","35.15","Agency Staff","130199943","03/01/2018","Child Protection","MASH","R1100"
"Wolverhampton City Council","http://opendatacommunities.org/id/metropolitan-district-council/wolverhampton","707077","Sanctuary Personnel Limited","INV00219878","4.95","Agency Staff","130199947","03/01/2018","Child Protection","MASH","R1100"
"Wolverhampton City Council","http://opendatacommunities.org/id/metropolitan-district-council/wolverhampton","707077","Sanctuary Personnel Limited","INV00238049","1,420.80","Agency Staff","130199957","03/01/2018","Child Protection","MASH","R1100"
"Wolverhampton City Council","http://opendatacommunities.org/id/metropolitan-district-council/wolverhampton","707077","Sanctuary Personnel Limited","INV00247666","1,332.00","Agency Staff","130203022","26/01/2018","Child Protection","MASH","R1100"
"Wolverhampton City Council","http://opendatacommunities.org/id/metropolitan-district-council/wolverhampton","707077","Sanctuary Personnel Limited","INV00244785","288.75","Agency Staff","130202135","19/01/2018","Child Protection","MASH","R1100"
"Wolverhampton City Council","http://opendatacommunities.org/id/metropolitan-district-council/wolverhampton","707077","Sanctuary Personnel Limited","INV00244784","1,080.00","Agency Staff","130202134","19/01/2018","Child Protection","MASH","R1100"
"Wolverhampton City Council","http://opendatacommunities.org/id/metropolitan-district-council/wolverhampton","707077","Sanctuary Personnel Limited","INV00238052","1,420.80","Agency Staff","130199960","03/01/2018","Child Protection","MASH","R1100"
"Wolverhampton City Council","http://opendatacommunities.org/id/metropolitan-district-council/wolverhampton","707077","Sanctuary Personnel Limited","INV00224375","1,332.00","Agency Staff","130199949","03/01/2018","Child Protection","MASH","R1100"
"Wolverhampton City Council","http://opendatacommunities.org/id/metropolitan-district-council/wolverhampton","707077","Sanctuary Personnel Limited","INV00226451","27.05","Agency Staff","130199950","03/01/2018","Child Protection","MASH","R1100"
"Wolverhampton City Council","http://opendatacommunities.org/id/metropolitan-district-council/wolverhampton","707077","Sanctuary Personnel Limited","INV00216402","1,386.00","Agency Staff","130199944","03/01/2018","Child Protection","MASH","R1100"
"Wolverhampton City Council","http://opendatacommunities.org/id/metropolitan-district-council/wolverhampton","707077","Sanctuary Personnel Limited","INV00212289","1,332.00","Agency Staff","130199939","03/01/2018","Child Protection","MASH","R1100"
"Wolverhampton City Council","http://opendatacommunities.org/id/metropolitan-district-council/wolverhampton","707077","Sanctuary Personnel Limited","INV00231331","1,332.00","Agency Staff","130199956","03/01/2018","Child Protection","MASH","R1100"
"Wolverhampton City Council","http://opendatacommunities.org/id/metropolitan-district-council/wolverhampton","707077","Sanctuary Personnel Limited","INV00214029","31.01","Agency Staff","130199941","03/01/2018","Child Protection","MASH","R1100"
"Wolverhampton City Council","http://opendatacommunities.org/id/metropolitan-district-council/wolverhampton","707077","Sanctuary Personnel Limited","INV00249820","26.00","Agency Staff","130203911","31/01/2018","Child Protection","MASH","R1100"
"Wolverhampton City Council","http://opendatacommunities.org/id/metropolitan-district-council/wolverhampton","707077","Sanctuary Personnel Limited","INV00247664","36.40","Agency Staff","130203020","24/01/2018","Child Protection","MASH","R1100"
"Wolverhampton City Council","http://opendatacommunities.org/id/metropolitan-district-council/wolverhampton","707077","Sanctuary Personnel Limited","INV00224507","1,420.80","Agency Staff","130194690","05/01/2018","Child Protection","MASH","R1100"
"Wolverhampton City Council","http://opendatacommunities.org/id/metropolitan-district-council/wolverhampton","707077","Sanctuary Personnel Limited","INV00210196","1,420.80","Agency Staff","130188842","05/01/2018","Child Protection","MASH","R1100"
"Wolverhampton City Council","http://opendatacommunities.org/id/metropolitan-district-council/wolverhampton","707077","Sanctuary Personnel Limited","INV00220811","1,152.00","Agency Staff","130192958","05/01/2018","Child Protection","MASH","R1100"
"Wolverhampton City Council","http://opendatacommunities.org/id/metropolitan-district-council/wolverhampton","707077","Sanctuary Personnel Limited","INV00243509","1,332.00","Agency Staff","130201111","10/01/2018","Child Protection","MASH","R1100"
"Wolverhampton City Council","http://opendatacommunities.org/id/metropolitan-district-council/wolverhampton","707085","Sandwell Mbc","210034334","173.00","Construction and Conversion","130199966","03/01/2018","","Primary Expansion Programme","C1100"
"Wolverhampton City Council","http://opendatacommunities.org/id/metropolitan-district-council/wolverhampton","707085","Sandwell Mbc","210034335","1,340.00","Construction and Conversion","130199967","03/01/2018","","Bilston Urban Village","C1100"
"Wolverhampton City Council","http://opendatacommunities.org/id/metropolitan-district-council/wolverhampton","707085","Sandwell Mbc","210034370","394.00","Construction and Conversion","130203126","31/01/2018","","Primary Expansion Programme","C1100"
"Wolverhampton City Council","http://opendatacommunities.org/id/metropolitan-district-council/wolverhampton","707086","Sandwell Mbc(Sandwell Business Syst)","120009958","28,481.91","TPP - Payments to Local Authorities","130201398","17/01/2018","Democratic Services","Coroners Service","R5100"
"Wolverhampton City Council","http://opendatacommunities.org/id/metropolitan-district-council/wolverhampton","707086","Sandwell Mbc(Sandwell Business Syst)","108000251","28,125.00","Services - Professional Fees","130202780","31/01/2018","Audit Services","Audit Services","R4400"
"Wolverhampton City Council","http://opendatacommunities.org/id/metropolitan-district-council/wolverhampton","707088","Sandwich","106","200.00","Equipment - Purchase","130198238","03/01/2018","Headstart","Headstart Phase 3","R4000"
"Wolverhampton City Council","http://opendatacommunities.org/id/metropolitan-district-council/wolverhampton","707099","Sarah Clover","38741406/12/2017","2,750.00","Services - Professional Fees","130199091","03/01/2018","Licensing","Licensing - Licensing Act 2003","R4400"
"Wolverhampton City Council","http://opendatacommunities.org/id/metropolitan-district-council/wolverhampton","707121","Schneider Electric Limited","97953134","1,250.42","R&M - Departmental planned (internal)","130201594","31/01/2018","Maintenance Programme","Civic Centre Repairs & Maintenance","R2000"
"Wolverhampton City Council","http://opendatacommunities.org/id/metropolitan-district-council/wolverhampton","707143","Schools Health Education Unit Limited","18080","5,000.00","TPP - Public Health Contracts","130199968","10/01/2018","Healthier Places Service","Public Health - Healthier Places Team","R5060"
"Wolverhampton City Council","http://opendatacommunities.org/id/metropolitan-district-council/wolverhampton","707162","Scottish Power PLC","SP029-88096350017","196.40","Electricity","190406548","03/01/2018","Housing Revenue Account","Hostels / Outreach","R2100"
"Wolverhampton City Council","http://opendatacommunities.org/id/metropolitan-district-council/wolverhampton","707164","Scribes Plus Limited","9747","346.00","Materials","130200552","17/01/2018","Bereavement Services","Crematorium","R4007"
"Wolverhampton City Council","http://opendatacommunities.org/id/metropolitan-district-council/wolverhampton","707185","Security Plus Limited","651759","1,025.34","Services - Security","130202141","26/01/2018","Parking Services","On Street Parking","R4405"
"Wolverhampton City Council","http://opendatacommunities.org/id/metropolitan-district-council/wolverhampton","707185","Security Plus Limited","649027","6,080.58","Services - Security","130199972","17/01/2018","Parking Services","On Street Parking","R4405"
"Wolverhampton City Council","http://opendatacommunities.org/id/metropolitan-district-council/wolverhampton","707185","Security Plus Limited","18826","-50.96","Services - Security","130199969","17/01/2018","The Hub","Cash in Transit (Operational Finance)","R4405"
"Wolverhampton City Council","http://opendatacommunities.org/id/metropolitan-district-council/wolverhampton","707185","Security Plus Limited","650747","4.73","Services - Security","130201945","26/01/2018","Leisure Services","Aldersley Leisure Village","R4405"
"Wolverhampton City Council","http://opendatacommunities.org/id/metropolitan-district-council/wolverhampton","707185","Security Plus Limited","650747","4.73","Services - Security","130201945","26/01/2018","Leisure Services","Bert Williams Leisure Centre","R4405"
"Wolverhampton City Council","http://opendatacommunities.org/id/metropolitan-district-council/wolverhampton","707185","Security Plus Limited","640625","38.22","Services - Security","130194835","17/01/2018","Visitor Economy","Civic Halls Non-Direct Event Management Account","R4405"
"Wolverhampton City Council","http://opendatacommunities.org/id/metropolitan-district-council/wolverhampton","707185","Security Plus Limited","650744","4.73","Services - Security","130202140","31/01/2018","Leisure Services","Bert Williams Leisure Centre","R4405"
"Wolverhampton City Council","http://opendatacommunities.org/id/metropolitan-district-council/wolverhampton","707185","Security Plus Limited","650744","4.73","Services - Security","130202140","31/01/2018","Leisure Services","Aldersley Leisure Village","R4405"
"Wolverhampton City Council","http://opendatacommunities.org/id/metropolitan-district-council/wolverhampton","707185","Security Plus Limited","650745","37.84","Services - Security","130201943","26/01/2018","Housing Revenue Account","HRA General","R4405"
"Wolverhampton City Council","http://opendatacommunities.org/id/metropolitan-district-council/wolverhampton","707185","Security Plus Limited","649026","3,015.72","Services - Security","130199971","17/01/2018","The Hub","Cash in Transit (Operational Finance)","R4405"
"Wolverhampton City Council","http://opendatacommunities.org/id/metropolitan-district-council/wolverhampton","707185","Security Plus Limited","643906","5,819.13","Services - Security","130197100","05/01/2018","Parking Services","On Street Parking","R4405"
"Wolverhampton City Council","http://opendatacommunities.org/id/metropolitan-district-council/wolverhampton","707185","Security Plus Limited","650748","113.52","Services - Security","130201946","26/01/2018","Housing Revenue Account","HRA General","R4405"
"Wolverhampton City Council","http://opendatacommunities.org/id/metropolitan-district-council/wolverhampton","707185","Security Plus Limited","645596","56.76","Services - Security","130199019","17/01/2018","Visitor Economy","Civic Halls Non-Direct Event Management Account","R4405"
"Wolverhampton City Council","http://opendatacommunities.org/id/metropolitan-district-council/wolverhampton","707185","Security Plus Limited","649025","2,690.75","Services - Security","130199970","17/01/2018","The Hub","Cash in Transit (Operational Finance)","R4405"
"Wolverhampton City Council","http://opendatacommunities.org/id/metropolitan-district-council/wolverhampton","707191","Seesaws Day Nursery","Penn NEF Spring 2018 INST 1","20,731.50","TPP - Private Nursery Education Funding","190415169","26/01/2018","Early Years","Early Years Universal Entitlement for 3 and 4 Year Olds","R5035"
"Wolverhampton City Council","http://opendatacommunities.org/id/metropolitan-district-council/wolverhampton","707191","Seesaws Day Nursery","Merridale NEF Spring 2018 INST 1","22,491.00","TPP - Private Nursery Education Funding","190415170","26/01/2018","Early Years","Early Years Universal Entitlement for 3 and 4 Year Olds","R5035"
"Wolverhampton City Council","http://opendatacommunities.org/id/metropolitan-district-council/wolverhampton","707191","Seesaws Day Nursery","Penn TFT Spring 2018 Inst 1","8,488.80","Grant Payments","190415177","26/01/2018","Early Years","Early Years Entitlement Funding for Disadvantaged 2 Year Olds","R4700"
"Wolverhampton City Council","http://opendatacommunities.org/id/metropolitan-district-council/wolverhampton","707191","Seesaws Day Nursery","18572","496.00","TPP - Child Care provided for client","130201762","24/01/2018","Adult Education","Discretionary Fund","R5034"
"Wolverhampton City Council","http://opendatacommunities.org/id/metropolitan-district-council/wolverhampton","707191","Seesaws Day Nursery","18308","145.00","TPP - Child Care provided for client","130201760","24/01/2018","Adult Education","Discretionary Fund","R5034"
"Wolverhampton City Council","http://opendatacommunities.org/id/metropolitan-district-council/wolverhampton","707191","Seesaws Day Nursery","Merridale TFT Spring 2018 Inst 1","6,225.12","Grant Payments","190415178","26/01/2018","Early Years","Early Years Entitlement Funding for Disadvantaged 2 Year Olds","R4700"
"Wolverhampton City Council","http://opendatacommunities.org/id/metropolitan-district-council/wolverhampton","707195","Select & Save Wolverhampton Limited","WANEWS044","85.19","Books","130203211","24/01/2018","Strategic Organisation Development","Warstones Library","R4309"
"Wolverhampton City Council","http://opendatacommunities.org/id/metropolitan-district-council/wolverhampton","707195","Select & Save Wolverhampton Limited","WANEWS045","93.24","Books","130203212","24/01/2018","Strategic Organisation Development","Warstones Library","R4309"
"Wolverhampton City Council","http://opendatacommunities.org/id/metropolitan-district-council/wolverhampton","707196","Select Alarm Systems Limited","87408","101.00","Services - Security","130199981","10/01/2018","Maintenance Programme","Centralised R&M","R4405"
"Wolverhampton City Council","http://opendatacommunities.org/id/metropolitan-district-council/wolverhampton","707196","Select Alarm Systems Limited","85515","111.00","Fixtures and Fittings - R&M","130199973","03/01/2018","Visitor Economy","Bilston Museum","R2502"
"Wolverhampton City Council","http://opendatacommunities.org/id/metropolitan-district-council/wolverhampton","707196","Select Alarm Systems Limited","87445","101.00","Services - Security","130199982","10/01/2018","Maintenance Programme","Centralised R&M","R4405"
"Wolverhampton City Council","http://opendatacommunities.org/id/metropolitan-district-council/wolverhampton","707196","Select Alarm Systems Limited","85754","101.00","Fixtures and Fittings - R&M","130199975","03/01/2018","Visitor Economy","Bilston Museum","R2502"
"Wolverhampton City Council","http://opendatacommunities.org/id/metropolitan-district-council/wolverhampton","707196","Select Alarm Systems Limited","87114","410.00","Fixtures and Fittings - R&M","130199978","03/01/2018","Visitor Economy","Bilston Museum","R2502"
"Wolverhampton City Council","http://opendatacommunities.org/id/metropolitan-district-council/wolverhampton","707196","Select Alarm Systems Limited","87398","200.00","Services - Security","130199980","10/01/2018","Facilities Management","Magistrates","R4405"
"Wolverhampton City Council","http://opendatacommunities.org/id/metropolitan-district-council/wolverhampton","707196","Select Alarm Systems Limited","87447","101.00","Services - Security","130199983","10/01/2018","Maintenance Programme","Centralised R&M","R4405"
"Wolverhampton City Council","http://opendatacommunities.org/id/metropolitan-district-council/wolverhampton","707196","Select Alarm Systems Limited","84408","292.00","Fixtures and Fittings - R&M","130200553","03/01/2018","Adult Education","Alan Garner Centre Building","R2502"
"Wolverhampton City Council","http://opendatacommunities.org/id/metropolitan-district-council/wolverhampton","707196","Select Alarm Systems Limited","86196","410.00","Fixtures and Fittings - R&M","130199977","03/01/2018","Visitor Economy","Bilston Museum","R2502"
"Wolverhampton City Council","http://opendatacommunities.org/id/metropolitan-district-council/wolverhampton","707213","Sellick Partnership Group Limited","INV214317","538.46","Agency Staff","130199988","03/01/2018","Legal Services","Legal Services","R1100"
"Wolverhampton City Council","http://opendatacommunities.org/id/metropolitan-district-council/wolverhampton","707213","Sellick Partnership Group Limited","INV215857","1,320.00","Agency Staff","130201401","17/01/2018","Legal Services","Legal Services","R1100"
"Wolverhampton City Council","http://opendatacommunities.org/id/metropolitan-district-council/wolverhampton","707213","Sellick Partnership Group Limited","INV216204","1,463.00","Agency Staff","130202294","24/01/2018","Legal Services","Legal Services","R1100"
"Wolverhampton City Council","http://opendatacommunities.org/id/metropolitan-district-council/wolverhampton","707213","Sellick Partnership Group Limited","INV217291","1,485.00","Agency Staff","130203213","31/01/2018","Legal Services","Legal Services","R1100"
"Wolverhampton City Council","http://opendatacommunities.org/id/metropolitan-district-council/wolverhampton","707213","Sellick Partnership Group Limited","INV214316","652.46","Agency Staff","130199987","03/01/2018","Legal Services","Legal Services","R1100"
"Wolverhampton City Council","http://opendatacommunities.org/id/metropolitan-district-council/wolverhampton","707213","Sellick Partnership Group Limited","INV214143","1,595.00","Agency Staff","130199984","03/01/2018","Legal Services","Legal Services","R1100"
"Wolverhampton City Council","http://opendatacommunities.org/id/metropolitan-district-council/wolverhampton","707213","Sellick Partnership Group Limited","INV214315","475.00","Agency Staff","130199986","03/01/2018","Legal Services","Legal Services","R1100"
"Wolverhampton City Council","http://opendatacommunities.org/id/metropolitan-district-council/wolverhampton","707213","Sellick Partnership Group Limited","INV215856","825.00","Agency Staff","130201400","17/01/2018","Legal Services","Legal Services","R1100"
"Wolverhampton City Council","http://opendatacommunities.org/id/metropolitan-district-council/wolverhampton","707213","Sellick Partnership Group Limited","INV214314","950.38","Agency Staff","130199985","03/01/2018","Legal Services","Legal Services","R1100"
"Wolverhampton City Council","http://opendatacommunities.org/id/metropolitan-district-council/wolverhampton","707213","Sellick Partnership Group Limited","INV215004","1,639.00","Agency Staff","130200846","10/01/2018","Legal Services","Legal Services","R1100"
"Wolverhampton City Council","http://opendatacommunities.org/id/metropolitan-district-council/wolverhampton","707247","Severn Trent Water Limited","821133134","171.42","Client Allowances","190410653","12/01/2018","Looked After Children","LAC Transitions Team","R6301"
"Wolverhampton City Council","http://opendatacommunities.org/id/metropolitan-district-council/wolverhampton","707249","Severn Valley Window & Door Limited","23994","63.38","R&M - Departmental planned (external)","130199990","03/01/2018","Maintenance Programme","Centralised R&M","R2001"
"Wolverhampton City Council","http://opendatacommunities.org/id/metropolitan-district-council/wolverhampton","707249","Severn Valley Window & Door Limited","24097","715.00","R&M - Departmental planned (internal)","130203378","31/01/2018","Facilities Management","Caretakers Community Centre","R2000"
"Wolverhampton City Council","http://opendatacommunities.org/id/metropolitan-district-council/wolverhampton","707249","Severn Valley Window & Door Limited","24038","169.00","R&M - Departmental planned (external)","130199281","05/01/2018","Maintenance Programme","Centralised R&M","R2001"
"Wolverhampton City Council","http://opendatacommunities.org/id/metropolitan-district-council/wolverhampton","707249","Severn Valley Window & Door Limited","24100","832.00","Fixtures and Fittings - R&M","130203379","31/01/2018","Visitor Economy","Bantock House Museum","R2502"
"Wolverhampton City Council","http://opendatacommunities.org/id/metropolitan-district-council/wolverhampton","707295","Shropshire Coffee Limited","141606","1,330.26","Provisions (Resale)","130203565","26/01/2018","Visitor Economy","Art Gallery Tea Room","R4102"
"Wolverhampton City Council","http://opendatacommunities.org/id/metropolitan-district-council/wolverhampton","707295","Shropshire Coffee Limited","142663","237.12","Provisions (Resale)","130204218","31/01/2018","Visitor Economy","Art Gallery Tea Room","R4102"
"Wolverhampton City Council","http://opendatacommunities.org/id/metropolitan-district-council/wolverhampton","707295","Shropshire Coffee Limited","142861","1,384.02","Provisions (Resale)","130204220","31/01/2018","Visitor Economy","Art Gallery Tea Room","R4102"
"Wolverhampton City Council","http://opendatacommunities.org/id/metropolitan-district-council/wolverhampton","707295","Shropshire Coffee Limited","142173","240.40","Provisions (Resale)","130203567","26/01/2018","Visitor Economy","The Little Civic","R4102"
"Wolverhampton City Council","http://opendatacommunities.org/id/metropolitan-district-council/wolverhampton","707295","Shropshire Coffee Limited","143328","324.30","Provisions (Resale)","130204222","31/01/2018","Visitor Economy","Art Gallery Tea Room","R4102"
"Wolverhampton City Council","http://opendatacommunities.org/id/metropolitan-district-council/wolverhampton","707295","Shropshire Coffee Limited","142637","706.02","Provisions (Resale)","130204217","31/01/2018","Visitor Economy","Art Gallery Tea Room","R4102"
"Wolverhampton City Council","http://opendatacommunities.org/id/metropolitan-district-council/wolverhampton","707295","Shropshire Coffee Limited","141136","81.61","Provisions (Resale)","130203563","26/01/2018","Visitor Economy","Catering Overhead Account","R4102"
"Wolverhampton City Council","http://opendatacommunities.org/id/metropolitan-district-council/wolverhampton","707295","Shropshire Coffee Limited","141605","35.44","Provisions (Resale)","130203564","26/01/2018","Visitor Economy","Bantock - Tea Rooms","R4102"
"Wolverhampton City Council","http://opendatacommunities.org/id/metropolitan-district-council/wolverhampton","707295","Shropshire Coffee Limited","142476","898.36","Provisions (Resale)","130204215","31/01/2018","Visitor Economy","Art Gallery Tea Room","R4102"
"Wolverhampton City Council","http://opendatacommunities.org/id/metropolitan-district-council/wolverhampton","707295","Shropshire Coffee Limited","142499","43.50","Provisions (Resale)","130204216","31/01/2018","Visitor Economy","Art Gallery Tea Room","R4102"
"Wolverhampton City Council","http://opendatacommunities.org/id/metropolitan-district-council/wolverhampton","707295","Shropshire Coffee Limited","141734","360.29","Provisions (Resale)","130203566","26/01/2018","Visitor Economy","Art Gallery Tea Room","R4102"
"Wolverhampton City Council","http://opendatacommunities.org/id/metropolitan-district-council/wolverhampton","707295","Shropshire Coffee Limited","142240","603.32","Provisions (Resale)","130203918","31/01/2018","Visitor Economy","Catering Overhead Account","R4102"
"Wolverhampton City Council","http://opendatacommunities.org/id/metropolitan-district-council/wolverhampton","707296","Shropshire Council","EAS000384","150.00","Training Expenses","130201763","17/01/2018","Human Resources","Workforce Development","R1650"
"Wolverhampton City Council","http://opendatacommunities.org/id/metropolitan-district-council/wolverhampton","707296","Shropshire Council","EAS000369","60.00","Training Expenses","130201947","17/01/2018","Looked After Children","Adoption and Residence Team & Allowances","R1650"
"Wolverhampton City Council","http://opendatacommunities.org/id/metropolitan-district-council/wolverhampton","707303","Sico Europe Limited","INV0118023","87.00","Equipment - R & M","130203380","24/01/2018","Catering","Education Catering - General Overheads","R4003"
"Wolverhampton City Council","http://opendatacommunities.org/id/metropolitan-district-council/wolverhampton","707303","Sico Europe Limited","INV0117763","6,871.60","Equipment - Catering","130201596","12/01/2018","Catering","Education Catering - General Overheads","R4010"
"Wolverhampton City Council","http://opendatacommunities.org/id/metropolitan-district-council/wolverhampton","707313","Signature","SI00196953","120.00","Exam Expenses (Non-Employee)","130201117","10/01/2018","Adult Education","Discretionary Fund","R4630"
"Wolverhampton City Council","http://opendatacommunities.org/id/metropolitan-district-council/wolverhampton","707313","Signature","SI00196674","200.00","Exam Expenses (Non-Employee)","130201114","10/01/2018","Adult Education","Discretionary Fund","R4630"
"Wolverhampton City Council","http://opendatacommunities.org/id/metropolitan-district-council/wolverhampton","707313","Signature","8878","34.00","Exam Expenses (Non-Employee)","130202782","24/01/2018","Adult Education","Language Studies Delivery Area","R4630"
"Wolverhampton City Council","http://opendatacommunities.org/id/metropolitan-district-council/wolverhampton","707313","Signature","SI00196952","20.00","Exam Expenses (Non-Employee)","130201116","10/01/2018","Adult Education","Discretionary Fund","R4630"
"Wolverhampton City Council","http://opendatacommunities.org/id/metropolitan-district-council/wolverhampton","707313","Signature","SI00197083","200.00","Exam Expenses (Non-Employee)","130201120","10/01/2018","Adult Education","Discretionary Fund","R4630"
"Wolverhampton City Council","http://opendatacommunities.org/id/metropolitan-district-council/wolverhampton","707313","Signature","SI00197082","160.00","Exam Expenses (Non-Employee)","130201119","10/01/2018","Adult Education","Discretionary Fund","R4630"
"Wolverhampton City Council","http://opendatacommunities.org/id/metropolitan-district-council/wolverhampton","707313","Signature","SI00196951","238.00","Exam Expenses (Non-Employee)","130201115","10/01/2018","Adult Education","Discretionary Fund","R4630"
"Wolverhampton City Council","http://opendatacommunities.org/id/metropolitan-district-council/wolverhampton","707313","Signature","SI00197081","100.00","Exam Expenses (Non-Employee)","130201118","10/01/2018","Adult Education","Discretionary Fund","R4630"
"Wolverhampton City Council","http://opendatacommunities.org/id/metropolitan-district-council/wolverhampton","707313","Signature","SI00196529","35.00","Exam Expenses (Non-Employee)","130201113","10/01/2018","Adult Education","Discretionary Fund","R4630"
"Wolverhampton City Council","http://opendatacommunities.org/id/metropolitan-district-council/wolverhampton","707321","Signs Now UK","INV/270/8571","1,385.40","Equipment - Purchase","130189414","05/01/2018","Leisure Services","Bert Williams Leisure Centre","R4000"
"Wolverhampton City Council","http://opendatacommunities.org/id/metropolitan-district-council/wolverhampton","707349","SUEZ Recycling & Recovery (Sita UK)","80087226","7,863.70","TPP - Waste Disposal","130200554","05/01/2018","Environmental Maintenance","Ground Maintenance West","R5003"
"Wolverhampton City Council","http://opendatacommunities.org/id/metropolitan-district-council/wolverhampton","707349","SUEZ Recycling & Recovery (Sita UK)","80087226","8,817.90","TPP - Waste Disposal","130200554","05/01/2018","Environmental Maintenance","Ground Maintenance East","R5003"
"Wolverhampton City Council","http://opendatacommunities.org/id/metropolitan-district-council/wolverhampton","707349","SUEZ Recycling & Recovery (Sita UK)","80087226","891.80","TPP - Waste Disposal","130200554","05/01/2018","Highways Maintenance","Gully Sweeping","R5003"
"Wolverhampton City Council","http://opendatacommunities.org/id/metropolitan-district-council/wolverhampton","707349","SUEZ Recycling & Recovery (Sita UK)","80090031","3,331.90","TPP - Waste Disposal","130203381","26/01/2018","Environmental Maintenance","Ground Maintenance West","R5003"
"Wolverhampton City Council","http://opendatacommunities.org/id/metropolitan-district-council/wolverhampton","707349","SUEZ Recycling & Recovery (Sita UK)","80090031","5,326.10","TPP - Waste Disposal","130203381","26/01/2018","Environmental Maintenance","Ground Maintenance East","R5003"
"Wolverhampton City Council","http://opendatacommunities.org/id/metropolitan-district-council/wolverhampton","707349","SUEZ Recycling & Recovery (Sita UK)","80090031","321.10","TPP - Waste Disposal","130203381","26/01/2018","Highways Maintenance","Gully Sweeping","R5003"
"Wolverhampton City Council","http://opendatacommunities.org/id/metropolitan-district-council/wolverhampton","707356","SJ Cleaning (Midlands) Limited","WCC 1718/07","470.00","Window Cleaning","130199992","17/01/2018","Facilities Management","Civic Centre","R2701"
"Wolverhampton City Council","http://opendatacommunities.org/id/metropolitan-district-council/wolverhampton","707356","SJ Cleaning (Midlands) Limited","WCC1718/10","2,646.75","Window Cleaning","130201402","17/01/2018","Facilities Management","Civic Centre","R2701"
"Wolverhampton City Council","http://opendatacommunities.org/id/metropolitan-district-council/wolverhampton","707356","SJ Cleaning (Midlands) Limited","WCC 1718/08","6,129.55","Window Cleaning","130203383","26/01/2018","Facilities Management","Civic Centre","R2701"
"Wolverhampton City Council","http://opendatacommunities.org/id/metropolitan-district-council/wolverhampton","707386","Smile Education Recruitment","INV001581","121.41","Grant Payments","130201765","19/01/2018","Early Intervention","EIP Locality 7 � Low Hill","R4700"
"Wolverhampton City Council","http://opendatacommunities.org/id/metropolitan-district-council/wolverhampton","707386","Smile Education Recruitment","INV001581","-121.41","Grant Payments","130201765","19/01/2018","Early Intervention","EIP Locality 7 � Low Hill","R4700"
"Wolverhampton City Council","http://opendatacommunities.org/id/metropolitan-district-council/wolverhampton","707386","Smile Education Recruitment","INV001581","121.41","Grant Payments","130201765","19/01/2018","Early Intervention","EIP Locality 7 � Low Hill","R4700"
"Wolverhampton City Council","http://opendatacommunities.org/id/metropolitan-district-council/wolverhampton","707386","Smile Education Recruitment","INV001733","121.41","Grant Payments","130201766","31/01/2018","Early Intervention","EIP Locality 7 � Low Hill","R4700"
"Wolverhampton City Council","http://opendatacommunities.org/id/metropolitan-district-council/wolverhampton","707386","Smile Education Recruitment","INV001733","-121.41","Grant Payments","130201766","31/01/2018","Early Intervention","EIP Locality 7 � Low Hill","R4700"
"Wolverhampton City Council","http://opendatacommunities.org/id/metropolitan-district-council/wolverhampton","707386","Smile Education Recruitment","INV001733","121.41","Grant Payments","130201766","31/01/2018","Early Intervention","EIP Locality 7 � Low Hill","R4700"
"Wolverhampton City Council","http://opendatacommunities.org/id/metropolitan-district-council/wolverhampton","707386","Smile Education Recruitment","INV001297","344.00","Grant Payments","130199994","05/01/2018","Early Intervention","EIP Locality 7 � Low Hill","R4700"
"Wolverhampton City Council","http://opendatacommunities.org/id/metropolitan-district-council/wolverhampton","707386","Smile Education Recruitment","INV001297","-344.00","Grant Payments","130199994","05/01/2018","Early Intervention","EIP Locality 7 � Low Hill","R4700"
"Wolverhampton City Council","http://opendatacommunities.org/id/metropolitan-district-council/wolverhampton","707386","Smile Education Recruitment","INV001297","344.00","Grant Payments","130199994","05/01/2018","Early Intervention","EIP Locality 7 � Low Hill","R4700"
"Wolverhampton City Council","http://opendatacommunities.org/id/metropolitan-district-council/wolverhampton","707386","Smile Education Recruitment","INV001246","121.41","Grant Payments","130199993","10/01/2018","Early Intervention","EIP Locality 8 � Children�s Village","R4700"
"Wolverhampton City Council","http://opendatacommunities.org/id/metropolitan-district-council/wolverhampton","707386","Smile Education Recruitment","INV001246","-121.41","Grant Payments","130199993","10/01/2018","Early Intervention","EIP Locality 8 � Children�s Village","R4700"
"Wolverhampton City Council","http://opendatacommunities.org/id/metropolitan-district-council/wolverhampton","707386","Smile Education Recruitment","INV001246","121.41","Grant Payments","130199993","10/01/2018","Early Intervention","EIP Locality 8 � Children�s Village","R4700"
"Wolverhampton City Council","http://opendatacommunities.org/id/metropolitan-district-council/wolverhampton","707386","Smile Education Recruitment","INV001417","242.82","Grant Payments","130201764","19/01/2018","Early Intervention","EIP Locality 7 � Low Hill","R4700"
"Wolverhampton City Council","http://opendatacommunities.org/id/metropolitan-district-council/wolverhampton","707386","Smile Education Recruitment","INV001417","-242.82","Grant Payments","130201764","19/01/2018","Early Intervention","EIP Locality 7 � Low Hill","R4700"
"Wolverhampton City Council","http://opendatacommunities.org/id/metropolitan-district-council/wolverhampton","707386","Smile Education Recruitment","INV001417","242.82","Grant Payments","130201764","19/01/2018","Early Intervention","EIP Locality 7 � Low Hill","R4700"
"Wolverhampton City Council","http://opendatacommunities.org/id/metropolitan-district-council/wolverhampton","707388","Smith Bros(Caer Conan)Wholesale Limited","538829","11,614.28","Materials","130199995","10/01/2018","Street Lighting","Street Lighting Maintenance","R4007"
"Wolverhampton City Council","http://opendatacommunities.org/id/metropolitan-district-council/wolverhampton","707388","Smith Bros(Caer Conan)Wholesale Limited","538829","0.01","Materials","130199995","10/01/2018","Street Lighting","Street Lighting Maintenance","R4007"
"Wolverhampton City Council","http://opendatacommunities.org/id/metropolitan-district-council/wolverhampton","707388","Smith Bros(Caer Conan)Wholesale Limited","538829","0.03","Materials","130199995","10/01/2018","Street Lighting","Street Lighting Maintenance","R4007"
"Wolverhampton City Council","http://opendatacommunities.org/id/metropolitan-district-council/wolverhampton","707407","Soc. Of Chief Librarians In Engl & Wales","175:17/18","425.00","Books","130200847","10/01/2018","Strategic Organisation Development","Global Budgets","R4309"
"Wolverhampton City Council","http://opendatacommunities.org/id/metropolitan-district-council/wolverhampton","707408","Socitm Limited","BB18 - 300","1,595.00","Subscriptions","130199996","03/01/2018","ICTS","Strategic ICTS (ICT Service Budget)","R4701"
"Wolverhampton City Council","http://opendatacommunities.org/id/metropolitan-district-council/wolverhampton","707441","Southern Electric PLC","711657101 0007(1)","417.77","Gas","190406717","03/01/2018","Estates and Valuations","Industrial Premises ; Fordhouse Road","R2101"
"Wolverhampton City Council","http://opendatacommunities.org/id/metropolitan-district-council/wolverhampton","707441","Southern Electric PLC","711657101 0007(2)","60.00","Gas","190406718","03/01/2018","Estates and Valuations","Industrial Premises ; Fordhouse Road","R2101"
"Wolverhampton City Council","http://opendatacommunities.org/id/metropolitan-district-council/wolverhampton","707441","Southern Electric PLC","51670396/0014","23.02","Electricity","190406725","03/01/2018","Estates and Valuations","Industrial Premises ; Loxdale Park","R2100"
"Wolverhampton City Council","http://opendatacommunities.org/id/metropolitan-district-council/wolverhampton","707441","Southern Electric PLC","17238420007","41.20","Electricity","190415077","24/01/2018","Corporate Asset Management","Central Utilities to Recharge","R2100"
"Wolverhampton City Council","http://opendatacommunities.org/id/metropolitan-district-council/wolverhampton","707441","Southern Electric PLC","711657101 0007","119.04","Gas","190406716","03/01/2018","Estates and Valuations","Industrial Premises ; Fordhouse Road","R2101"
"Wolverhampton City Council","http://opendatacommunities.org/id/metropolitan-district-council/wolverhampton","707441","Southern Electric PLC","861664845 0013","17.77","Electricity","190406720","03/01/2018","Estates and Valuations","Industrial Premises ; Fordhouse Road","R2100"
"Wolverhampton City Council","http://opendatacommunities.org/id/metropolitan-district-council/wolverhampton","707441","Southern Electric PLC","SSE0210-70391 05311","336.91","Electricity","190408469","05/01/2018","Housing Revenue Account","Hostels / Outreach","R2100"
"Wolverhampton City Council","http://opendatacommunities.org/id/metropolitan-district-council/wolverhampton","707441","Southern Electric PLC","861664845 0013(1)","340.96","Electricity","190406721","03/01/2018","Estates and Valuations","Industrial Premises ; Fordhouse Road","R2100"
"Wolverhampton City Council","http://opendatacommunities.org/id/metropolitan-district-council/wolverhampton","707441","Southern Electric PLC","51670396/0013","17.24","Electricity","190406724","03/01/2018","Estates and Valuations","Industrial Premises ; Loxdale Park","R2100"
"Wolverhampton City Council","http://opendatacommunities.org/id/metropolitan-district-council/wolverhampton","707441","Southern Electric PLC","51670396/0015","20.86","Electricity","190406726","03/01/2018","Estates and Valuations","Industrial Premises ; Loxdale Park","R2100"
"Wolverhampton City Council","http://opendatacommunities.org/id/metropolitan-district-council/wolverhampton","707441","Southern Electric PLC","51670396/0012","15.57","Electricity","190406723","03/01/2018","Estates and Valuations","Industrial Premises ; Loxdale Park","R2100"
"Wolverhampton City Council","http://opendatacommunities.org/id/metropolitan-district-council/wolverhampton","707441","Southern Electric PLC","711657101 0008","116.48","Gas","190406719","03/01/2018","Estates and Valuations","Industrial Premises ; Fordhouse Road","R2101"
"Wolverhampton City Council","http://opendatacommunities.org/id/metropolitan-district-council/wolverhampton","707441","Southern Electric PLC","51670396/0011","10.92","Electricity","190406722","03/01/2018","Estates and Valuations","Industrial Premises ; Loxdale Park","R2100"
"Wolverhampton City Council","http://opendatacommunities.org/id/metropolitan-district-council/wolverhampton","707456","Spacekraft Limited","95900","786.40","Equipment - Purchase","130199997","10/01/2018","Standards and Vulnerable Pupils","SEN Early Years Team","R4000"
"Wolverhampton City Council","http://opendatacommunities.org/id/metropolitan-district-council/wolverhampton","707456","Spacekraft Limited","95900","-786.40","Equipment - Purchase","130199997","10/01/2018","Standards and Vulnerable Pupils","SEN Early Years Team","R4000"
"Wolverhampton City Council","http://opendatacommunities.org/id/metropolitan-district-council/wolverhampton","707456","Spacekraft Limited","95900","741.40","Equipment - Purchase","130199997","10/01/2018","Standards and Vulnerable Pupils","SEN Early Years Team","R4000"
"Wolverhampton City Council","http://opendatacommunities.org/id/metropolitan-district-council/wolverhampton","707456","Spacekraft Limited","95900","45.00","Equipment - Purchase","130199997","10/01/2018","Standards and Vulnerable Pupils","SEN Early Years Team","R4000"
"Wolverhampton City Council","http://opendatacommunities.org/id/metropolitan-district-council/wolverhampton","707463","Specialised Tools & Equipment Limited","086020","1,175.00","Materials","130202295","17/01/2018","Environmental Maintenance","Ground Maintenance East","R4007"
"Wolverhampton City Council","http://opendatacommunities.org/id/metropolitan-district-council/wolverhampton","707463","Specialised Tools & Equipment Limited","086020","8.50","Comms - Postage","130202295","17/01/2018","Environmental Maintenance","Ground Maintenance East","R4503"
"Wolverhampton City Council","http://opendatacommunities.org/id/metropolitan-district-council/wolverhampton","707464","Specialist Computer Centres PLC","OP/M388819","184.06","Computing - Purchase of Software","130201122","17/01/2018","ICTS","Strategic ICTS (ICT Service Budget)","R4531"
"Wolverhampton City Council","http://opendatacommunities.org/id/metropolitan-district-council/wolverhampton","707465","Specialist Crafts Limited","SINHO00293239","100.78","Equipment - Purchase","130199998","03/01/2018","Adult Education","Foundation Studies Delivery Area","R4000"
"Wolverhampton City Council","http://opendatacommunities.org/id/metropolitan-district-council/wolverhampton","707465","Specialist Crafts Limited","SINHO00293239","6.00","Equipment - Purchase","130199998","03/01/2018","Adult Education","Foundation Studies Delivery Area","R4000"
"Wolverhampton City Council","http://opendatacommunities.org/id/metropolitan-district-council/wolverhampton","707474","Speedy Asset Services Limited","7110537961","52.80","Equipment - Hire","130202790","26/01/2018","Highways Maintenance","Planned Highways Maintenance","R4001"
"Wolverhampton City Council","http://opendatacommunities.org/id/metropolitan-district-council/wolverhampton","707474","Speedy Asset Services Limited","7110702648","54.52","Equipment - Hire","130199999","12/01/2018","Highways Maintenance","Planned Highways Maintenance","R4001"
"Wolverhampton City Council","http://opendatacommunities.org/id/metropolitan-district-council/wolverhampton","707474","Speedy Asset Services Limited","7110845978","27.22","Equipment - Hire","130201599","12/01/2018","Highways Maintenance","Planned Highways Maintenance","R4001"
"Wolverhampton City Council","http://opendatacommunities.org/id/metropolitan-district-council/wolverhampton","707474","Speedy Asset Services Limited","7110846185","109.20","Equipment - Hire","130201601","12/01/2018","Highways Maintenance","Planned Highways Maintenance","R4001"
"Wolverhampton City Council","http://opendatacommunities.org/id/metropolitan-district-council/wolverhampton","707474","Speedy Asset Services Limited","7110536546","52.80","Equipment - Hire","130195219","12/01/2018","Highways Maintenance","Planned Highways Maintenance","R4001"
"Wolverhampton City Council","http://opendatacommunities.org/id/metropolitan-district-council/wolverhampton","707474","Speedy Asset Services Limited","7110709351","52.80","Equipment - Hire","130200021","12/01/2018","Highways Maintenance","Planned Highways Maintenance","R4001"
"Wolverhampton City Council","http://opendatacommunities.org/id/metropolitan-district-council/wolverhampton","707474","Speedy Asset Services Limited","7110708293","34.15","Equipment - Hire","130200015","12/01/2018","Highways Maintenance","Planned Highways Maintenance","R4001"
"Wolverhampton City Council","http://opendatacommunities.org/id/metropolitan-district-council/wolverhampton","707474","Speedy Asset Services Limited","7110709702","107.27","Equipment - Hire","130200023","12/01/2018","Highways Maintenance","Planned Highways Maintenance","R4001"
"Wolverhampton City Council","http://opendatacommunities.org/id/metropolitan-district-council/wolverhampton","707474","Speedy Asset Services Limited","7110708736","88.00","Equipment - Hire","130200017","12/01/2018","Highways Maintenance","Planned Highways Maintenance","R4001"
"Wolverhampton City Council","http://opendatacommunities.org/id/metropolitan-district-council/wolverhampton","707474","Speedy Asset Services Limited","7110850354","50.40","Equipment - Hire","130201617","12/01/2018","Highways Maintenance","Planned Highways Maintenance","R4001"
"Wolverhampton City Council","http://opendatacommunities.org/id/metropolitan-district-council/wolverhampton","707474","Speedy Asset Services Limited","7110850098","84.00","Equipment - Hire","130201614","12/01/2018","Highways Maintenance","Planned Highways Maintenance","R4001"
"Wolverhampton City Council","http://opendatacommunities.org/id/metropolitan-district-council/wolverhampton","707474","Speedy Asset Services Limited","7110848532","252.00","Equipment - Hire","130201609","12/01/2018","Highways Maintenance","Planned Highways Maintenance","R4001"
"Wolverhampton City Council","http://opendatacommunities.org/id/metropolitan-district-council/wolverhampton","707474","Speedy Asset Services Limited","7110536860","121.00","Equipment - Hire","130195221","12/01/2018","Highways Maintenance","Planned Highways Maintenance","R4001"
"Wolverhampton City Council","http://opendatacommunities.org/id/metropolitan-district-council/wolverhampton","707474","Speedy Asset Services Limited","7110708999","-54.52","Equipment - Hire","130200019","12/01/2018","Highways Maintenance","Planned Highways Maintenance","R4001"
"Wolverhampton City Council","http://opendatacommunities.org/id/metropolitan-district-council/wolverhampton","707474","Speedy Asset Services Limited","7110845671","52.04","Equipment - Hire","130201598","12/01/2018","Highways Maintenance","Planned Highways Maintenance","R4001"
"Wolverhampton City Council","http://opendatacommunities.org/id/metropolitan-district-council/wolverhampton","707474","Speedy Asset Services Limited","7110846311","52.00","Equipment - Hire","130201602","12/01/2018","Highways Maintenance","Planned Highways Maintenance","R4001"
"Wolverhampton City Council","http://opendatacommunities.org/id/metropolitan-district-council/wolverhampton","707474","Speedy Asset Services Limited","7110847308","108.61","Materials","130201608","17/01/2018","Street Lighting","Street Lighting Maintenance","R4007"
"Wolverhampton City Council","http://opendatacommunities.org/id/metropolitan-district-council/wolverhampton","707474","Speedy Asset Services Limited","7110708120","12.00","Equipment - Hire","130200014","12/01/2018","Highways Maintenance","Planned Highways Maintenance","R4001"
"Wolverhampton City Council","http://opendatacommunities.org/id/metropolitan-district-council/wolverhampton","707474","Speedy Asset Services Limited","7110708408","257.40","Equipment - Hire","130200016","12/01/2018","Highways Maintenance","Planned Highways Maintenance","R4001"
"Wolverhampton City Council","http://opendatacommunities.org/id/metropolitan-district-council/wolverhampton","707474","Speedy Asset Services Limited","7110703502","54.47","Equipment - Hire","130200004","12/01/2018","Highways Maintenance","Planned Highways Maintenance","R4001"
"Wolverhampton City Council","http://opendatacommunities.org/id/metropolitan-district-council/wolverhampton","707474","Speedy Asset Services Limited","7110703412","114.40","Equipment - Hire","130200003","12/01/2018","Highways Maintenance","Planned Highways Maintenance","R4001"
"Wolverhampton City Council","http://opendatacommunities.org/id/metropolitan-district-council/wolverhampton","707474","Speedy Asset Services Limited","7110846997","50.40","Equipment - Hire","130201605","12/01/2018","Highways Maintenance","Planned Highways Maintenance","R4001"
"Wolverhampton City Council","http://opendatacommunities.org/id/metropolitan-district-council/wolverhampton","707474","Speedy Asset Services Limited","7110849869","245.70","Equipment - Hire","130201613","12/01/2018","Highways Maintenance","Planned Highways Maintenance","R4001"
"Wolverhampton City Council","http://opendatacommunities.org/id/metropolitan-district-council/wolverhampton","707474","Speedy Asset Services Limited","7110536700","121.00","Equipment - Hire","130195220","12/01/2018","Highways Maintenance","Planned Highways Maintenance","R4001"
"Wolverhampton City Council","http://opendatacommunities.org/id/metropolitan-district-council/wolverhampton","707474","Speedy Asset Services Limited","7110850868","102.40","Equipment - Hire","130201620","12/01/2018","Highways Maintenance","Planned Highways Maintenance","R4001"
"Wolverhampton City Council","http://opendatacommunities.org/id/metropolitan-district-council/wolverhampton","707474","Speedy Asset Services Limited","7110707152","103.44","Equipment - Hire","130200013","12/01/2018","Highways Maintenance","Planned Highways Maintenance","R4001"
"Wolverhampton City Council","http://opendatacommunities.org/id/metropolitan-district-council/wolverhampton","707474","Speedy Asset Services Limited","7110704674","113.78","Materials","130200010","12/01/2018","Street Lighting","Street Lighting Maintenance","R4007"
"Wolverhampton City Council","http://opendatacommunities.org/id/metropolitan-district-council/wolverhampton","707474","Speedy Asset Services Limited","7110709118","52.80","Equipment - Hire","130200020","12/01/2018","Highways Maintenance","Planned Highways Maintenance","R4001"
"Wolverhampton City Council","http://opendatacommunities.org/id/metropolitan-district-council/wolverhampton","707474","Speedy Asset Services Limited","7110537965","103.49","Equipment - Hire","130202791","26/01/2018","Highways Maintenance","Planned Highways Maintenance","R4001"
"Wolverhampton City Council","http://opendatacommunities.org/id/metropolitan-district-council/wolverhampton","707474","Speedy Asset Services Limited","7110702829","54.52","Equipment - Hire","130200000","12/01/2018","Highways Maintenance","Planned Highways Maintenance","R4001"
"Wolverhampton City Council","http://opendatacommunities.org/id/metropolitan-district-council/wolverhampton","707474","Speedy Asset Services Limited","7110704117","52.80","Equipment - Hire","130200006","12/01/2018","Highways Maintenance","Planned Highways Maintenance","R4001"
"Wolverhampton City Council","http://opendatacommunities.org/id/metropolitan-district-council/wolverhampton","707474","Speedy Asset Services Limited","7110709508","103.49","Equipment - Hire","130200022","12/01/2018","Highways Maintenance","Planned Highways Maintenance","R4001"
"Wolverhampton City Council","http://opendatacommunities.org/id/metropolitan-district-council/wolverhampton","707474","Speedy Asset Services Limited","7110850104","84.00","Equipment - Hire","130201615","12/01/2018","Highways Maintenance","Planned Highways Maintenance","R4001"
"Wolverhampton City Council","http://opendatacommunities.org/id/metropolitan-district-council/wolverhampton","707474","Speedy Asset Services Limited","7110850622","50.40","Equipment - Hire","130201618","12/01/2018","Highways Maintenance","Planned Highways Maintenance","R4001"
"Wolverhampton City Council","http://opendatacommunities.org/id/metropolitan-district-council/wolverhampton","707474","Speedy Asset Services Limited","7110848728","108.61","Equipment - Hire","130201610","12/01/2018","Highways Maintenance","Planned Highways Maintenance","R4001"
"Wolverhampton City Council","http://opendatacommunities.org/id/metropolitan-district-council/wolverhampton","707474","Speedy Asset Services Limited","7110847127","115.50","Equipment - Hire","130201606","12/01/2018","Highways Maintenance","Planned Highways Maintenance","R4001"
"Wolverhampton City Council","http://opendatacommunities.org/id/metropolitan-district-council/wolverhampton","707474","Speedy Asset Services Limited","7110846533","280.75","Equipment - Hire","130201603","12/01/2018","Highways Maintenance","Planned Highways Maintenance","R4001"
"Wolverhampton City Council","http://opendatacommunities.org/id/metropolitan-district-council/wolverhampton","707474","Speedy Asset Services Limited","7110850351","52.04","Equipment - Hire","130201616","12/01/2018","Highways Maintenance","Planned Highways Maintenance","R4001"
"Wolverhampton City Council","http://opendatacommunities.org/id/metropolitan-district-council/wolverhampton","707474","Speedy Asset Services Limited","7110704393","121.00","Equipment - Hire","130200008","12/01/2018","Highways Maintenance","Planned Highways Maintenance","R4001"
"Wolverhampton City Council","http://opendatacommunities.org/id/metropolitan-district-council/wolverhampton","707474","Speedy Asset Services Limited","7110708745","88.00","Equipment - Hire","130200018","12/01/2018","Highways Maintenance","Planned Highways Maintenance","R4001"
"Wolverhampton City Council","http://opendatacommunities.org/id/metropolitan-district-council/wolverhampton","707474","Speedy Asset Services Limited","7110702955","28.51","Equipment - Hire","130200001","12/01/2018","Highways Maintenance","Planned Highways Maintenance","R4001"
"Wolverhampton City Council","http://opendatacommunities.org/id/metropolitan-district-council/wolverhampton","707474","Speedy Asset Services Limited","7110914951","-36.20","Equipment - Hire","130202617","26/01/2018","Highways Maintenance","Planned Highways Maintenance","R4001"
"Wolverhampton City Council","http://opendatacommunities.org/id/metropolitan-district-council/wolverhampton","707474","Speedy Asset Services Limited","7110914764","11.00","Equipment - Hire","130203119","26/01/2018","Highways Maintenance","Planned Highways Maintenance","R4001"
"Wolverhampton City Council","http://opendatacommunities.org/id/metropolitan-district-council/wolverhampton","707474","Speedy Asset Services Limited","7110703157","54.47","Equipment - Hire","130200002","12/01/2018","Highways Maintenance","Planned Highways Maintenance","R4001"
"Wolverhampton City Council","http://opendatacommunities.org/id/metropolitan-district-council/wolverhampton","707474","Speedy Asset Services Limited","7110706961","103.44","Equipment - Hire","130200012","12/01/2018","Highways Maintenance","Planned Highways Maintenance","R4001"
"Wolverhampton City Council","http://opendatacommunities.org/id/metropolitan-district-council/wolverhampton","707474","Speedy Asset Services Limited","7110704492","121.00","Equipment - Hire","130200009","12/01/2018","Highways Maintenance","Planned Highways Maintenance","R4001"
"Wolverhampton City Council","http://opendatacommunities.org/id/metropolitan-district-council/wolverhampton","707474","Speedy Asset Services Limited","7110706792","214.00","Equipment - Hire","130200011","12/01/2018","Highways Maintenance","Planned Highways Maintenance","R4001"
"Wolverhampton City Council","http://opendatacommunities.org/id/metropolitan-district-council/wolverhampton","707474","Speedy Asset Services Limited","7110846178","52.00","Equipment - Hire","130201600","12/01/2018","Highways Maintenance","Patching","R4001"
"Wolverhampton City Council","http://opendatacommunities.org/id/metropolitan-district-council/wolverhampton","707474","Speedy Asset Services Limited","7110845666","52.04","Equipment - Hire","130201597","12/01/2018","Highways Maintenance","Planned Highways Maintenance","R4001"
"Wolverhampton City Council","http://opendatacommunities.org/id/metropolitan-district-council/wolverhampton","707474","Speedy Asset Services Limited","7110703908","294.15","Equipment - Hire","130200005","12/01/2018","Highways Maintenance","Planned Highways Maintenance","R4001"
"Wolverhampton City Council","http://opendatacommunities.org/id/metropolitan-district-council/wolverhampton","707474","Speedy Asset Services Limited","7110846760","50.40","Equipment - Hire","130201604","12/01/2018","Highways Maintenance","Planned Highways Maintenance","R4001"
"Wolverhampton City Council","http://opendatacommunities.org/id/metropolitan-district-council/wolverhampton","707474","Speedy Asset Services Limited","7110849070","102.44","Equipment - Hire","130201612","12/01/2018","Highways Maintenance","Planned Highways Maintenance","R4001"
"Wolverhampton City Council","http://opendatacommunities.org/id/metropolitan-district-council/wolverhampton","707474","Speedy Asset Services Limited","7110848735","108.61","Equipment - Hire","130201611","12/01/2018","Highways Maintenance","Planned Highways Maintenance","R4001"
"Wolverhampton City Council","http://opendatacommunities.org/id/metropolitan-district-council/wolverhampton","707474","Speedy Asset Services Limited","7110847132","115.50","Equipment - Hire","130201607","12/01/2018","Highways Maintenance","Planned Highways Maintenance","R4001"
"Wolverhampton City Council","http://opendatacommunities.org/id/metropolitan-district-council/wolverhampton","707474","Speedy Asset Services Limited","7110850772","98.78","Equipment - Hire","130201619","12/01/2018","Highways Maintenance","Planned Highways Maintenance","R4001"
"Wolverhampton City Council","http://opendatacommunities.org/id/metropolitan-district-council/wolverhampton","707474","Speedy Asset Services Limited","7110704122","52.80","Equipment - Hire","130200007","12/01/2018","Highways Maintenance","Planned Highways Maintenance","R4001"
"Wolverhampton City Council","http://opendatacommunities.org/id/metropolitan-district-council/wolverhampton","707499","Spurgeons","3336","8,083.33","TPP - Social Care Support Services","130201403","31/01/2018","Child Protection","Head of Service - CINCP","R5501"
"Wolverhampton City Council","http://opendatacommunities.org/id/metropolitan-district-council/wolverhampton","707517","St George�S Veterinary Group","340899677","408.76","Services - Professional Fees","130202142","17/01/2018","Public Protection","Pest Control & Animal Welfare","R4400"
"Wolverhampton City Council","http://opendatacommunities.org/id/metropolitan-district-council/wolverhampton","707517","St George�S Veterinary Group","WCC2017_12","180.00","Services - Professional Fees","130202792","19/01/2018","Public Protection","Pest Control & Animal Welfare","R4400"
"Wolverhampton City Council","http://opendatacommunities.org/id/metropolitan-district-council/wolverhampton","707517","St George�S Veterinary Group","WCC2017_11","855.00","Services - Professional Fees","130201404","10/01/2018","Public Protection","Pest Control & Animal Welfare","R4400"
"Wolverhampton City Council","http://opendatacommunities.org/id/metropolitan-district-council/wolverhampton","707519","St Ives Chambers","163526 A90BM228","1,737.50","Services - Professional Fees","130203023","31/01/2018","Specialist Support","Upper Pendeford Farm Short Breaks Centre","R4400"
"Wolverhampton City Council","http://opendatacommunities.org/id/metropolitan-district-council/wolverhampton","707521","St Johns Ambulance","SP18000387","276.00","Services - Professional Fees","130204229","31/01/2018","Visitor Economy","Civic & Wulfrun In-House Promotions","R4400"
"Wolverhampton City Council","http://opendatacommunities.org/id/metropolitan-district-council/wolverhampton","707521","St Johns Ambulance","SP18000425","1,426.00","Services - Professional Fees","130204230","31/01/2018","Visitor Economy","Civic & Wulfrun Outhouse & Other Comercial Events","R4400"
"Wolverhampton City Council","http://opendatacommunities.org/id/metropolitan-district-council/wolverhampton","707521","St Johns Ambulance","SP17021197","92.00","Services - Professional Fees","130203919","31/01/2018","Visitor Economy","Civic Halls Non-Direct Event Management Account","R4400"
"Wolverhampton City Council","http://opendatacommunities.org/id/metropolitan-district-council/wolverhampton","707564","Staffordshire County Council","8004151216","2,459.60","Client Transport - SEN","130202794","24/01/2018","School Planning & Resources","Special - Transport","R3043"
"Wolverhampton City Council","http://opendatacommunities.org/id/metropolitan-district-council/wolverhampton","707564","Staffordshire County Council","8006028444","13,902.07","TPP - Payments to Local Authorities","130203926","31/01/2018","Strategic Director People","Head of Strategic Commissioning � People","R5100"
"Wolverhampton City Council","http://opendatacommunities.org/id/metropolitan-district-council/wolverhampton","707568","Staffordshire Record Society","Subscription 01/01/2018","10.00","Subscriptions","130202494","26/01/2018","Visitor Economy","Archives","R4701"
"Wolverhampton City Council","http://opendatacommunities.org/id/metropolitan-district-council/wolverhampton","707572","Stage Audio Services Limited","3856","2,340.00","Services - Professional Fees","130201409","17/01/2018","Visitor Economy","The Little Civic","R4400"
"Wolverhampton City Council","http://opendatacommunities.org/id/metropolitan-district-council/wolverhampton","707572","Stage Audio Services Limited","3856","130.00","Services - Professional Fees","130201409","17/01/2018","Visitor Economy","Civic & Wulfrun In-House Promotions","R4400"
"Wolverhampton City Council","http://opendatacommunities.org/id/metropolitan-district-council/wolverhampton","707572","Stage Audio Services Limited","3854","8,730.00","Equipment - Hire","130201407","17/01/2018","Visitor Economy","Civic & Wulfrun In-House Promotions","R4001"
"Wolverhampton City Council","http://opendatacommunities.org/id/metropolitan-district-council/wolverhampton","707572","Stage Audio Services Limited","3854","215.00","Equipment - Hire","130201407","17/01/2018","Visitor Economy","Civic & Wulfrun Outhouse & Other Comercial Events","R4001"
"Wolverhampton City Council","http://opendatacommunities.org/id/metropolitan-district-council/wolverhampton","707572","Stage Audio Services Limited","3857","376.00","Equipment - Purchase","130201410","17/01/2018","Visitor Economy","Civic Halls Non-Direct Event Management Account","R4000"
"Wolverhampton City Council","http://opendatacommunities.org/id/metropolitan-district-council/wolverhampton","707572","Stage Audio Services Limited","3852","890.00","Services - Professional Fees","130201405","17/01/2018","Visitor Economy","Civic Halls Non-Direct Event Management Account","R4400"
"Wolverhampton City Council","http://opendatacommunities.org/id/metropolitan-district-council/wolverhampton","707572","Stage Audio Services Limited","3852","5,300.00","Services - Professional Fees","130201405","17/01/2018","Visitor Economy","Civic & Wulfrun In-House Promotions","R4400"
"Wolverhampton City Council","http://opendatacommunities.org/id/metropolitan-district-council/wolverhampton","707572","Stage Audio Services Limited","3852","2,500.00","Services - Professional Fees","130201405","17/01/2018","Visitor Economy","Civic & Wulfrun Outhouse & Other Comercial Events","R4400"
"Wolverhampton City Council","http://opendatacommunities.org/id/metropolitan-district-council/wolverhampton","707572","Stage Audio Services Limited","3852","270.00","Services - Professional Fees","130201405","17/01/2018","Visitor Economy","The Little Civic","R4400"
"Wolverhampton City Council","http://opendatacommunities.org/id/metropolitan-district-council/wolverhampton","707572","Stage Audio Services Limited","3858","690.00","Services - Professional Fees","130201411","17/01/2018","Visitor Economy","The Little Civic","R4400"
"Wolverhampton City Council","http://opendatacommunities.org/id/metropolitan-district-council/wolverhampton","707572","Stage Audio Services Limited","3855","1,650.00","Services - Professional Fees","130201408","17/01/2018","Visitor Economy","The Little Civic","R4400"
"Wolverhampton City Council","http://opendatacommunities.org/id/metropolitan-district-council/wolverhampton","707572","Stage Audio Services Limited","3855","170.00","Services - Professional Fees","130201408","17/01/2018","Visitor Economy","Civic & Wulfrun In-House Promotions","R4400"
"Wolverhampton City Council","http://opendatacommunities.org/id/metropolitan-district-council/wolverhampton","707572","Stage Audio Services Limited","3859","3,150.00","Equipment - Hire","130201412","17/01/2018","Visitor Economy","Civic & Wulfrun In-House Promotions","R4001"
"Wolverhampton City Council","http://opendatacommunities.org/id/metropolitan-district-council/wolverhampton","707572","Stage Audio Services Limited","3859","1,000.00","Equipment - Hire","130201412","17/01/2018","Visitor Economy","Civic & Wulfrun Outhouse & Other Comercial Events","R4001"
"Wolverhampton City Council","http://opendatacommunities.org/id/metropolitan-district-council/wolverhampton","707572","Stage Audio Services Limited","3853","1,100.00","Services - Professional Fees","130201406","17/01/2018","Visitor Economy","Civic & Wulfrun In-House Promotions","R4400"
"Wolverhampton City Council","http://opendatacommunities.org/id/metropolitan-district-council/wolverhampton","707572","Stage Audio Services Limited","3853","1,400.00","Services - Professional Fees","130201406","17/01/2018","Visitor Economy","Civic & Wulfrun In-House Promotions","R4400"
"Wolverhampton City Council","http://opendatacommunities.org/id/metropolitan-district-council/wolverhampton","707572","Stage Audio Services Limited","3859","470.00","Equipment - Hire","130201412","17/01/2018","Visitor Economy","The Little Civic","R4001"
"Wolverhampton City Council","http://opendatacommunities.org/id/metropolitan-district-council/wolverhampton","707575","Stage Wolves Limited","5628","630.00","Services - Professional Fees","130200026","03/01/2018","Visitor Economy","Civic & Wulfrun In-House Promotions","R4400"
"Wolverhampton City Council","http://opendatacommunities.org/id/metropolitan-district-council/wolverhampton","707575","Stage Wolves Limited","5626","240.00","Services - Professional Fees","130200025","05/01/2018","Visitor Economy","The Little Civic","R4400"
"Wolverhampton City Council","http://opendatacommunities.org/id/metropolitan-district-council/wolverhampton","707575","Stage Wolves Limited","5651","1,392.00","Services - Professional Fees","130200027","10/01/2018","Visitor Economy","Bonfire","R4400"
"Wolverhampton City Council","http://opendatacommunities.org/id/metropolitan-district-council/wolverhampton","707575","Stage Wolves Limited","5609","150.00","Services - Professional Fees","130200024","03/01/2018","Visitor Economy","The Little Civic","R4400"
"Wolverhampton City Council","http://opendatacommunities.org/id/metropolitan-district-council/wolverhampton","707575","Stage Wolves Limited","5630","3,362.00","Services - Professional Fees","130200697","03/01/2018","Visitor Economy","Civic & Wulfrun In-House Promotions","R4400"
"Wolverhampton City Council","http://opendatacommunities.org/id/metropolitan-district-council/wolverhampton","707580","Stannah Lifts Limited","17/0412/SAG","4,863.00","Grants paid out","190412550","17/01/2018","","Disabled Facilities Grants","C5000"
"Wolverhampton City Council","http://opendatacommunities.org/id/metropolitan-district-council/wolverhampton","707580","Stannah Lifts Limited","17/0293/SAG","5,553.00","Grants paid out","190415100","24/01/2018","","Disabled Facilities Grants","C5000"
"Wolverhampton City Council","http://opendatacommunities.org/id/metropolitan-district-council/wolverhampton","707580","Stannah Lifts Limited","17/0500/SAG","1,230.00","Grants paid out","190415743","26/01/2018","","Disabled Facilities Grants","C5000"
"Wolverhampton City Council","http://opendatacommunities.org/id/metropolitan-district-council/wolverhampton","707580","Stannah Lifts Limited","17/0320/SAG","5,243.00","Grants paid out","190413420","19/01/2018","","Disabled Facilities Grants","C5000"
"Wolverhampton City Council","http://opendatacommunities.org/id/metropolitan-district-council/wolverhampton","707580","Stannah Lifts Limited","17/0173/SAG","3,291.00","Grants paid out","190412546","17/01/2018","","Disabled Facilities Grants","C5000"
"Wolverhampton City Council","http://opendatacommunities.org/id/metropolitan-district-council/wolverhampton","707580","Stannah Lifts Limited","17/0295/SAG","2,893.00","Grants paid out","190412552","17/01/2018","","Disabled Facilities Grants","C5000"
"Wolverhampton City Council","http://opendatacommunities.org/id/metropolitan-district-council/wolverhampton","707580","Stannah Lifts Limited","17/0308/SAG","4,993.00","Grants paid out","190412551","17/01/2018","","Disabled Facilities Grants","C5000"
"Wolverhampton City Council","http://opendatacommunities.org/id/metropolitan-district-council/wolverhampton","707580","Stannah Lifts Limited","17/0404/SAG","4,993.00","Grants paid out","190411002","12/01/2018","","Disabled Facilities Grants","C5000"
"Wolverhampton City Council","http://opendatacommunities.org/id/metropolitan-district-council/wolverhampton","707580","Stannah Lifts Limited","17/0205/SAG","6,104.20","Grants paid out","190410244","10/01/2018","","Disabled Facilities Grants","C5000"
"Wolverhampton City Council","http://opendatacommunities.org/id/metropolitan-district-council/wolverhampton","707580","Stannah Lifts Limited","17/0510/SAG","865.00","Grants paid out","190415742","26/01/2018","","Disabled Facilities Grants","C5000"
"Wolverhampton City Council","http://opendatacommunities.org/id/metropolitan-district-council/wolverhampton","707580","Stannah Lifts Limited","17/0161/SAG","765.00","Grants paid out","190413421","19/01/2018","","Disabled Facilities Grants","C5000"
"Wolverhampton City Council","http://opendatacommunities.org/id/metropolitan-district-council/wolverhampton","707580","Stannah Lifts Limited","17/0462/SAG","2,943.00","Grants paid out","190415741","26/01/2018","","Disabled Facilities Grants","C5000"
"Wolverhampton City Council","http://opendatacommunities.org/id/metropolitan-district-council/wolverhampton","707580","Stannah Lifts Limited","17/0052/SAG","1,830.00","Grants paid out","190412547","17/01/2018","","Disabled Facilities Grants","C5000"
"Wolverhampton City Council","http://opendatacommunities.org/id/metropolitan-district-council/wolverhampton","707580","Stannah Lifts Limited","16/0812/SAG","5,082.00","Grants paid out","190412548","17/01/2018","","Disabled Facilities Grants","C5000"
"Wolverhampton City Council","http://opendatacommunities.org/id/metropolitan-district-council/wolverhampton","707580","Stannah Lifts Limited","17/0609/SLM","98.43","Grants paid out","190411004","12/01/2018","","Disabled Facilities Grants","C5000"
"Wolverhampton City Council","http://opendatacommunities.org/id/metropolitan-district-council/wolverhampton","707580","Stannah Lifts Limited","17/0586/SLM","1,787.88","Grants paid out","190408478","05/01/2018","","Disabled Facilities Grants","C5000"
"Wolverhampton City Council","http://opendatacommunities.org/id/metropolitan-district-council/wolverhampton","707581","Stannah Limited/Stannah Lift Services","s085078305","5,177.00","Construction and Conversion","130199120","10/01/2018","","Adaptations for People with Disabilites","C1100"
"Wolverhampton City Council","http://opendatacommunities.org/id/metropolitan-district-council/wolverhampton","707581","Stannah Limited/Stannah Lift Services","s085079352","5,214.00","Construction and Conversion","130201413","31/01/2018","","Adaptations for People with Disabilites","C1100"
"Wolverhampton City Council","http://opendatacommunities.org/id/metropolitan-district-council/wolverhampton","707581","Stannah Limited/Stannah Lift Services","s085078302","100.00","Construction and Conversion","130199118","10/01/2018","","Disabled Facilities Grants","C1100"
"Wolverhampton City Council","http://opendatacommunities.org/id/metropolitan-district-council/wolverhampton","707581","Stannah Limited/Stannah Lift Services","s085078160","100.00","Construction and Conversion","130199117","10/01/2018","","Adaptations for People with Disabilites","C1100"
"Wolverhampton City Council","http://opendatacommunities.org/id/metropolitan-district-council/wolverhampton","707581","Stannah Limited/Stannah Lift Services","s085078430","2,365.00","Construction and Conversion","130203024","26/01/2018","","Adaptations for People with Disabilites","C1100"
"Wolverhampton City Council","http://opendatacommunities.org/id/metropolitan-district-council/wolverhampton","707581","Stannah Limited/Stannah Lift Services","s085079353","50.00","Construction and Conversion","130201414","31/01/2018","","Adaptations for People with Disabilites","C1100"
"Wolverhampton City Council","http://opendatacommunities.org/id/metropolitan-district-council/wolverhampton","707581","Stannah Limited/Stannah Lift Services","s085078023","4,682.00","Construction and Conversion","130200028","05/01/2018","","Adaptations for People with Disabilites","C1100"
"Wolverhampton City Council","http://opendatacommunities.org/id/metropolitan-district-council/wolverhampton","707581","Stannah Limited/Stannah Lift Services","s085078953","50.00","Construction and Conversion","130200973","17/01/2018","","Adaptations for People with Disabilites","C1100"
"Wolverhampton City Council","http://opendatacommunities.org/id/metropolitan-district-council/wolverhampton","707581","Stannah Limited/Stannah Lift Services","s085078303","50.00","Construction and Conversion","130199119","10/01/2018","","Adaptations for People with Disabilites","C1100"
"Wolverhampton City Council","http://opendatacommunities.org/id/metropolitan-district-council/wolverhampton","707581","Stannah Limited/Stannah Lift Services","s085078485","3,963.00","Construction and Conversion","130203025","26/01/2018","","Adaptations for People with Disabilites","C1100"
"Wolverhampton City Council","http://opendatacommunities.org/id/metropolitan-district-council/wolverhampton","707581","Stannah Limited/Stannah Lift Services","s085079235","50.00","Construction and Conversion","130201123","31/01/2018","","Adaptations for People with Disabilites","C1100"
"Wolverhampton City Council","http://opendatacommunities.org/id/metropolitan-district-council/wolverhampton","707581","Stannah Limited/Stannah Lift Services","s085079235","50.00","Construction and Conversion","130201123","31/01/2018","","Adaptations for People with Disabilites","C1100"
"Wolverhampton City Council","http://opendatacommunities.org/id/metropolitan-district-council/wolverhampton","707609","Sterling Hydrotech Limited","29693","525.01","R&M - Departmental planned (external)","130200029","26/01/2018","Leisure Services","Central Baths","R2001"
"Wolverhampton City Council","http://opendatacommunities.org/id/metropolitan-district-council/wolverhampton","707625","Stone Hardy Limited","1222089","65.00","Equipment - Purchase","190410130","10/01/2018","Fleet Services","Fleet Management","R4000"
"Wolverhampton City Council","http://opendatacommunities.org/id/metropolitan-district-council/wolverhampton","707627","Stoneleigh Consultancy Limited","46327","5,152.40","Computing - Purchase of Hardware","130199234","03/01/2018","Early Intervention","HOS Early Intervention","R4530"
"Wolverhampton City Council","http://opendatacommunities.org/id/metropolitan-district-council/wolverhampton","707627","Stoneleigh Consultancy Limited","46338","8,883.86","Plant, Equipment, Machinery & Computer Hardware","130199236","03/01/2018","","ICT General Programme","C3000"
"Wolverhampton City Council","http://opendatacommunities.org/id/metropolitan-district-council/wolverhampton","707627","Stoneleigh Consultancy Limited","46328","1,321.00","Computing - Purchase of Hardware","130199235","03/01/2018","Early Intervention","HOS Early Intervention","R4530"
"Wolverhampton City Council","http://opendatacommunities.org/id/metropolitan-district-council/wolverhampton","707627","Stoneleigh Consultancy Limited","46351","3,280.18","Computing - Purchase of Hardware","130199237","10/01/2018","ICTS","Strategic ICTS (ICT Service Budget)","R4530"
"Wolverhampton City Council","http://opendatacommunities.org/id/metropolitan-district-council/wolverhampton","707644","Streetmaster (South Wales)Limited","4872","595.00","Materials for resale","130200030","12/01/2018","Bereavement Services","Cemeteries","R4008"
"Wolverhampton City Council","http://opendatacommunities.org/id/metropolitan-district-council/wolverhampton","707653","Studio Music Company Limited","453948","6.25","Books","130202619","19/01/2018","Standards and Vulnerable Pupils","Music Support Team","R4309"
"Wolverhampton City Council","http://opendatacommunities.org/id/metropolitan-district-council/wolverhampton","707653","Studio Music Company Limited","454217","13.45","Equipment - Purchase","130202620","19/01/2018","Standards and Vulnerable Pupils","Music Support Team","R4000"
"Wolverhampton City Council","http://opendatacommunities.org/id/metropolitan-district-council/wolverhampton","707653","Studio Music Company Limited","454217","-13.45","Equipment - Purchase","130202620","19/01/2018","Standards and Vulnerable Pupils","Music Support Team","R4000"
"Wolverhampton City Council","http://opendatacommunities.org/id/metropolitan-district-council/wolverhampton","707653","Studio Music Company Limited","454217","13.45","Equipment - Purchase","130202620","19/01/2018","Standards and Vulnerable Pupils","Music Support Team","R4000"
"Wolverhampton City Council","http://opendatacommunities.org/id/metropolitan-district-council/wolverhampton","707653","Studio Music Company Limited","INV629949","116.95","Books","130200031","10/01/2018","Standards and Vulnerable Pupils","Music Support Team","R4309"
"Wolverhampton City Council","http://opendatacommunities.org/id/metropolitan-district-council/wolverhampton","707657","Stulz UK Limited","18 - 6946","2,158.75","R&M - Departmental planned (internal)","130202795","24/01/2018","Maintenance Programme","Civic Centre Repairs & Maintenance","R2000"
"Wolverhampton City Council","http://opendatacommunities.org/id/metropolitan-district-council/wolverhampton","707682","Sunflowers Day Nursery Limited","TFT Spring 2018 Inst 1","6,225.12","Grant Payments","190415171","26/01/2018","Early Years","Early Years Entitlement Funding for Disadvantaged 2 Year Olds","R4700"
"Wolverhampton City Council","http://opendatacommunities.org/id/metropolitan-district-council/wolverhampton","707682","Sunflowers Day Nursery Limited","53 - 17","122.00","TPP - Child Care provided for client","130198937","03/01/2018","Adult Education","Discretionary Fund","R5034"
"Wolverhampton City Council","http://opendatacommunities.org/id/metropolitan-district-council/wolverhampton","707682","Sunflowers Day Nursery Limited","NEF Spring 2018 INST 1","19,086.75","TPP - Private Nursery Education Funding","190415159","26/01/2018","Early Years","Early Years Universal Entitlement for 3 and 4 Year Olds","R5035"
"Wolverhampton City Council","http://opendatacommunities.org/id/metropolitan-district-council/wolverhampton","707685","Sunnyside Kennels","SS1033","2,935.68","Services - Professional Fees","130200699","03/01/2018","Public Protection","Pest Control & Animal Welfare","R4400"
"Wolverhampton City Council","http://opendatacommunities.org/id/metropolitan-district-council/wolverhampton","707686","Sunrise Medical Limited","18UI049397","1,120.00","Equipment - Purchase","130201415","31/01/2018","Independent Living Service","Independent Living Service","R4000"
"Wolverhampton City Council","http://opendatacommunities.org/id/metropolitan-district-council/wolverhampton","707686","Sunrise Medical Limited","18UI048067","1,395.00","Equipment - Purchase","130200555","17/01/2018","Independent Living Service","Independent Living Service","R4000"
"Wolverhampton City Council","http://opendatacommunities.org/id/metropolitan-district-council/wolverhampton","707686","Sunrise Medical Limited","18UI048491","162.00","Equipment - Purchase","130200556","17/01/2018","Independent Living Service","Independent Living Service","R4000"
"Wolverhampton City Council","http://opendatacommunities.org/id/metropolitan-district-council/wolverhampton","707699","Supra UK Limited TA The Keysafe Company","81770","7,500.00","Equipment - Purchase","130203386","24/01/2018","Independent Living Service","Telecare","R4000"
"Wolverhampton City Council","http://opendatacommunities.org/id/metropolitan-district-council/wolverhampton","707718","Sweet & Maxwell/Thomson Reuters","802048489","52.00","Subscriptions","130200851","05/01/2018","Legal Services","Legal Services","R4701"
"Wolverhampton City Council","http://opendatacommunities.org/id/metropolitan-district-council/wolverhampton","707718","Sweet & Maxwell/Thomson Reuters","802025923","74.00","Subscriptions","130200849","03/01/2018","Legal Services","Legal Services","R4701"
"Wolverhampton City Council","http://opendatacommunities.org/id/metropolitan-district-council/wolverhampton","707718","Sweet & Maxwell/Thomson Reuters","6800359482","744.72","Subscriptions","130200700","03/01/2018","Legal Services","Legal Services","R4701"
"Wolverhampton City Council","http://opendatacommunities.org/id/metropolitan-district-council/wolverhampton","707718","Sweet & Maxwell/Thomson Reuters","802043717","55.00","Subscriptions","130200850","03/01/2018","Legal Services","Legal Services","R4701"
"Wolverhampton City Council","http://opendatacommunities.org/id/metropolitan-district-council/wolverhampton","707718","Sweet & Maxwell/Thomson Reuters","802120999","60.00","Subscriptions","130200712","03/01/2018","Legal Services","Legal Services","R4701"
"Wolverhampton City Council","http://opendatacommunities.org/id/metropolitan-district-council/wolverhampton","707718","Sweet & Maxwell/Thomson Reuters","802060887","52.00","Subscriptions","130200703","03/01/2018","Legal Services","Legal Services","R4701"
"Wolverhampton City Council","http://opendatacommunities.org/id/metropolitan-district-council/wolverhampton","707718","Sweet & Maxwell/Thomson Reuters","802101304","60.00","Subscriptions","130200707","05/01/2018","Legal Services","Legal Services","R4701"
"Wolverhampton City Council","http://opendatacommunities.org/id/metropolitan-district-council/wolverhampton","707718","Sweet & Maxwell/Thomson Reuters","802127363","20.00","Subscriptions","130200713","10/01/2018","Legal Services","Legal Services","R4701"
"Wolverhampton City Council","http://opendatacommunities.org/id/metropolitan-district-council/wolverhampton","707718","Sweet & Maxwell/Thomson Reuters","802073182","52.00","Subscriptions","130200704","03/01/2018","Legal Services","Legal Services","R4701"
"Wolverhampton City Council","http://opendatacommunities.org/id/metropolitan-district-council/wolverhampton","707718","Sweet & Maxwell/Thomson Reuters","4500450672","1,069.00","Subscriptions","130200848","03/01/2018","Legal Services","Legal Services","R4701"
"Wolverhampton City Council","http://opendatacommunities.org/id/metropolitan-district-council/wolverhampton","707722","Swift Maintnce Services (1973) Limited","24583","298.00","Equipment - R & M","130202300","19/01/2018","Catering","Education Catering - General Overheads","R4003"
"Wolverhampton City Council","http://opendatacommunities.org/id/metropolitan-district-council/wolverhampton","707722","Swift Maintnce Services (1973) Limited","24374","367.92","Equipment - Catering","130200037","03/01/2018","Visitor Economy","Catering Overhead Account","R4010"
"Wolverhampton City Council","http://opendatacommunities.org/id/metropolitan-district-council/wolverhampton","707722","Swift Maintnce Services (1973) Limited","24277","605.00","Equipment - Catering","130199423","03/01/2018","Visitor Economy","Catering Overhead Account","R4010"
"Wolverhampton City Council","http://opendatacommunities.org/id/metropolitan-district-council/wolverhampton","707722","Swift Maintnce Services (1973) Limited","24350","125.38","Equipment - Catering","130200035","17/01/2018","Visitor Economy","Bantock - Tea Rooms","R4010"
"Wolverhampton City Council","http://opendatacommunities.org/id/metropolitan-district-council/wolverhampton","707722","Swift Maintnce Services (1973) Limited","24471","410.29","Equipment - R & M","130200974","10/01/2018","Leisure Services","WV Active Catering","R4003"
"Wolverhampton City Council","http://opendatacommunities.org/id/metropolitan-district-council/wolverhampton","707722","Swift Maintnce Services (1973) Limited","23768","-92.54","Equipment - Catering","130194506","05/01/2018","Learning Disability Provider","Duke Street Bungalows","R4010"
"Wolverhampton City Council","http://opendatacommunities.org/id/metropolitan-district-council/wolverhampton","707722","Swift Maintnce Services (1973) Limited","23987","682.22","Equipment - R & M","130195926","17/01/2018","Catering","Education Catering - General Overheads","R4003"
"Wolverhampton City Council","http://opendatacommunities.org/id/metropolitan-district-council/wolverhampton","707722","Swift Maintnce Services (1973) Limited","24274","196.74","Equipment - Catering","130199320","10/01/2018","Older People Provider Services","Bradley Lodge Resource Centre","R4010"
"Wolverhampton City Council","http://opendatacommunities.org/id/metropolitan-district-council/wolverhampton","707722","Swift Maintnce Services (1973) Limited","24602","1,429.66","Equipment - Catering","130203027","26/01/2018","Visitor Economy","Bantock - Tea Rooms","R4010"
"Wolverhampton City Council","http://opendatacommunities.org/id/metropolitan-district-council/wolverhampton","707722","Swift Maintnce Services (1973) Limited","24582","141.00","Equipment - R & M","130202299","19/01/2018","Catering","Education Catering - General Overheads","R4003"
"Wolverhampton City Council","http://opendatacommunities.org/id/metropolitan-district-council/wolverhampton","707722","Swift Maintnce Services (1973) Limited","24584","240.50","Equipment - R & M","130202301","19/01/2018","Catering","Education Catering - General Overheads","R4003"
"Wolverhampton City Council","http://opendatacommunities.org/id/metropolitan-district-council/wolverhampton","707722","Swift Maintnce Services (1973) Limited","24573","121.54","Equipment - R & M","130202297","19/01/2018","Leisure Services","Bert Williams Leisure Centre Caf�","R4003"
"Wolverhampton City Council","http://opendatacommunities.org/id/metropolitan-district-council/wolverhampton","707722","Swift Maintnce Services (1973) Limited","24573","89.75","Equipment - R & M","130202297","19/01/2018","Leisure Services","Bert Williams Leisure Centre Caf�","R4003"
"Wolverhampton City Council","http://opendatacommunities.org/id/metropolitan-district-council/wolverhampton","707722","Swift Maintnce Services (1973) Limited","24572","636.41","Equipment - R & M","130202296","19/01/2018","Leisure Services","Bert Williams Leisure Centre Caf�","R4003"
"Wolverhampton City Council","http://opendatacommunities.org/id/metropolitan-district-council/wolverhampton","707722","Swift Maintnce Services (1973) Limited","24281","581.44","Equipment - Catering","130199360","03/01/2018","Maintenance Programme","Civic Centre Repairs & Maintenance","R4010"
"Wolverhampton City Council","http://opendatacommunities.org/id/metropolitan-district-council/wolverhampton","707722","Swift Maintnce Services (1973) Limited","24586","85.88","Equipment - Catering","130202495","31/01/2018","Maintenance Programme","Centralised R&M","R4010"
"Wolverhampton City Council","http://opendatacommunities.org/id/metropolitan-district-council/wolverhampton","707722","Swift Maintnce Services (1973) Limited","24472","442.45","R&M - Departmental planned (external)","130200975","10/01/2018","Bereavement Services","Coroners","R2001"
"Wolverhampton City Council","http://opendatacommunities.org/id/metropolitan-district-council/wolverhampton","707722","Swift Maintnce Services (1973) Limited","24628","404.29","Equipment - R & M","130203028","24/01/2018","Leisure Services","WV Active Catering - Central","R4003"
"Wolverhampton City Council","http://opendatacommunities.org/id/metropolitan-district-council/wolverhampton","707722","Swift Maintnce Services (1973) Limited","24539","120.81","Equipment - R & M","130201769","12/01/2018","Leisure Services","WV Active Catering - Central","R4003"
"Wolverhampton City Council","http://opendatacommunities.org/id/metropolitan-district-council/wolverhampton","707722","Swift Maintnce Services (1973) Limited","24581","7,994.36","Equipment - R & M","130202298","19/01/2018","Catering","Education Catering - General Overheads","R4003"
"Wolverhampton City Council","http://opendatacommunities.org/id/metropolitan-district-council/wolverhampton","707722","Swift Maintnce Services (1973) Limited","24665","86.48","Equipment - Catering","130203214","26/01/2018","Visitor Economy","Bantock - Tea Rooms","R4010"
"Wolverhampton City Council","http://opendatacommunities.org/id/metropolitan-district-council/wolverhampton","707722","Swift Maintnce Services (1973) Limited","24434","3,395.84","Equipment - R & M","130200038","03/01/2018","Cleaning","Cleaning of Buildings - General","R4003"
"Wolverhampton City Council","http://opendatacommunities.org/id/metropolitan-district-council/wolverhampton","707722","Swift Maintnce Services (1973) Limited","24307","136.35","Equipment - R & M","130200033","05/01/2018","Learning Disability Provider","Support Plus","R4003"
"Wolverhampton City Council","http://opendatacommunities.org/id/metropolitan-district-council/wolverhampton","707722","Swift Maintnce Services (1973) Limited","24611","95.00","Services - Professional Fees","130202496","24/01/2018","Visitor Economy","Civic Halls - CHIP","R4400"
"Wolverhampton City Council","http://opendatacommunities.org/id/metropolitan-district-council/wolverhampton","707722","Swift Maintnce Services (1973) Limited","24476","3,432.00","Equipment - Catering","130200976","12/01/2018","Catering","Education Catering - General Overheads","R4010"
"Wolverhampton City Council","http://opendatacommunities.org/id/metropolitan-district-council/wolverhampton","707722","Swift Maintnce Services (1973) Limited","24372","466.49","Equipment - Catering","130200036","17/01/2018","Learning Disability Provider","Duke Street Bungalows","R4010"
"Wolverhampton City Council","http://opendatacommunities.org/id/metropolitan-district-council/wolverhampton","707722","Swift Maintnce Services (1973) Limited","24091","1,707.00","Equipment - Catering","130197456","10/01/2018","Catering","Education Catering - General Overheads","R4010"
"Wolverhampton City Council","http://opendatacommunities.org/id/metropolitan-district-council/wolverhampton","707726","Swimrite Supplies Limited","388213","1,435.57","Materials for resale","130201183","12/01/2018","Leisure Services","Bert Williams Leisure Centre","R4008"
"Wolverhampton City Council","http://opendatacommunities.org/id/metropolitan-district-council/wolverhampton","707726","Swimrite Supplies Limited","388213","8.00","Comms - Postage","130201183","12/01/2018","Leisure Services","Bert Williams Leisure Centre","R4503"
"Wolverhampton City Council","http://opendatacommunities.org/id/metropolitan-district-council/wolverhampton","707726","Swimrite Supplies Limited","388213","-1,435.57","Materials for resale","130201183","12/01/2018","Leisure Services","Bert Williams Leisure Centre","R4008"
"Wolverhampton City Council","http://opendatacommunities.org/id/metropolitan-district-council/wolverhampton","707726","Swimrite Supplies Limited","388213","1,313.86","Materials for resale","130201183","12/01/2018","Leisure Services","Bert Williams Leisure Centre","R4008"
"Wolverhampton City Council","http://opendatacommunities.org/id/metropolitan-district-council/wolverhampton","707726","Swimrite Supplies Limited","388213","121.71","Materials for resale","130201183","12/01/2018","Leisure Services","Bert Williams Leisure Centre","R4008"
"Wolverhampton City Council","http://opendatacommunities.org/id/metropolitan-district-council/wolverhampton","707731","Switchshop Limited","127132","23,137.94","Computing - Purchase of Hardware","130201416","19/01/2018","Independent Living Service","Telecare","R4530"
"Wolverhampton City Council","http://opendatacommunities.org/id/metropolitan-district-council/wolverhampton","707751","T H White Limited","E81570","47.52","Equipment - Purchase","190415713","26/01/2018","Fleet Services","Fleet Management","R4000"
"Wolverhampton City Council","http://opendatacommunities.org/id/metropolitan-district-council/wolverhampton","707751","T H White Limited","E81627","11.84","Equipment - Purchase","190415716","26/01/2018","Fleet Services","Fleet Management","R4000"
"Wolverhampton City Council","http://opendatacommunities.org/id/metropolitan-district-council/wolverhampton","707751","T H White Limited","E81627","55.26","Equipment - Purchase","190415716","26/01/2018","Fleet Services","Fleet Management","R4000"
"Wolverhampton City Council","http://opendatacommunities.org/id/metropolitan-district-council/wolverhampton","707751","T H White Limited","E81627","1.22","Equipment - Purchase","190415716","26/01/2018","Fleet Services","Fleet Management","R4000"
"Wolverhampton City Council","http://opendatacommunities.org/id/metropolitan-district-council/wolverhampton","707751","T H White Limited","E81627","113.24","Equipment - Purchase","190415716","26/01/2018","Fleet Services","Fleet Management","R4000"
"Wolverhampton City Council","http://opendatacommunities.org/id/metropolitan-district-council/wolverhampton","707751","T H White Limited","E81627","222.82","Equipment - Purchase","190415716","26/01/2018","Fleet Services","Fleet Management","R4000"
"Wolverhampton City Council","http://opendatacommunities.org/id/metropolitan-district-council/wolverhampton","707751","T H White Limited","E81548","25.50","Equipment - Purchase","190410192","10/01/2018","Fleet Services","Fleet Management","R4000"
"Wolverhampton City Council","http://opendatacommunities.org/id/metropolitan-district-council/wolverhampton","707751","T H White Limited","E81615","262.82","Equipment - Purchase","190414558","24/01/2018","Fleet Services","Fleet Management","R4000"
"Wolverhampton City Council","http://opendatacommunities.org/id/metropolitan-district-council/wolverhampton","707751","T H White Limited","E81540","253.94","Equipment - Purchase","190410191","10/01/2018","Fleet Services","Fleet Management","R4000"
"Wolverhampton City Council","http://opendatacommunities.org/id/metropolitan-district-council/wolverhampton","707751","T H White Limited","E81540","84.11","Equipment - Purchase","190410191","10/01/2018","Fleet Services","Fleet Management","R4000"
"Wolverhampton City Council","http://opendatacommunities.org/id/metropolitan-district-council/wolverhampton","707751","T H White Limited","E81540","66.87","Equipment - Purchase","190410191","10/01/2018","Fleet Services","Fleet Management","R4000"
"Wolverhampton City Council","http://opendatacommunities.org/id/metropolitan-district-council/wolverhampton","707751","T H White Limited","E81540","44.90","Equipment - Purchase","190410191","10/01/2018","Fleet Services","Fleet Management","R4000"
"Wolverhampton City Council","http://opendatacommunities.org/id/metropolitan-district-council/wolverhampton","707751","T H White Limited","E81540","27.00","Equipment - Purchase","190410191","10/01/2018","Fleet Services","Fleet Management","R4000"
"Wolverhampton City Council","http://opendatacommunities.org/id/metropolitan-district-council/wolverhampton","707751","T H White Limited","E81584","15.76","Equipment - Purchase","190410766","12/01/2018","Fleet Services","Fleet Management","R4000"
"Wolverhampton City Council","http://opendatacommunities.org/id/metropolitan-district-council/wolverhampton","707751","T H White Limited","E81584","188.20","Equipment - Purchase","190410766","12/01/2018","Fleet Services","Fleet Management","R4000"
"Wolverhampton City Council","http://opendatacommunities.org/id/metropolitan-district-council/wolverhampton","707751","T H White Limited","E81626","304.72","Equipment - Purchase","190414559","24/01/2018","Fleet Services","Fleet Management","R4000"
"Wolverhampton City Council","http://opendatacommunities.org/id/metropolitan-district-council/wolverhampton","707751","T H White Limited","E81626","15.75","Equipment - Purchase","190414559","24/01/2018","Fleet Services","Fleet Management","R4000"
"Wolverhampton City Council","http://opendatacommunities.org/id/metropolitan-district-council/wolverhampton","707751","T H White Limited","E81626","43.08","Equipment - Purchase","190414559","24/01/2018","Fleet Services","Fleet Management","R4000"
"Wolverhampton City Council","http://opendatacommunities.org/id/metropolitan-district-council/wolverhampton","707751","T H White Limited","E81626","32.40","Equipment - Purchase","190414559","24/01/2018","Fleet Services","Fleet Management","R4000"
"Wolverhampton City Council","http://opendatacommunities.org/id/metropolitan-district-council/wolverhampton","707751","T H White Limited","E81626","103.95","Equipment - Purchase","190414559","24/01/2018","Fleet Services","Fleet Management","R4000"
"Wolverhampton City Council","http://opendatacommunities.org/id/metropolitan-district-council/wolverhampton","707751","T H White Limited","E81626","80.24","Equipment - Purchase","190414559","24/01/2018","Fleet Services","Fleet Management","R4000"
"Wolverhampton City Council","http://opendatacommunities.org/id/metropolitan-district-council/wolverhampton","707751","T H White Limited","E81577","42.68","Equipment - Purchase","190413598","19/01/2018","Fleet Services","Fleet Management","R4000"
"Wolverhampton City Council","http://opendatacommunities.org/id/metropolitan-district-council/wolverhampton","707751","T H White Limited","E81577","56.04","Equipment - Purchase","190413598","19/01/2018","Fleet Services","Fleet Management","R4000"
"Wolverhampton City Council","http://opendatacommunities.org/id/metropolitan-district-council/wolverhampton","707751","T H White Limited","E81687","41.44","Equipment - Purchase","190415717","26/01/2018","Fleet Services","Fleet Management","R4000"
"Wolverhampton City Council","http://opendatacommunities.org/id/metropolitan-district-council/wolverhampton","707751","T H White Limited","E81687","111.19","Equipment - Purchase","190415717","26/01/2018","Fleet Services","Fleet Management","R4000"
"Wolverhampton City Council","http://opendatacommunities.org/id/metropolitan-district-council/wolverhampton","707751","T H White Limited","E81689","25.79","Equipment - Purchase","190415718","26/01/2018","Fleet Services","Fleet Management","R4000"
"Wolverhampton City Council","http://opendatacommunities.org/id/metropolitan-district-council/wolverhampton","707751","T H White Limited","E81689","15.75","Equipment - Purchase","190415718","26/01/2018","Fleet Services","Fleet Management","R4000"
"Wolverhampton City Council","http://opendatacommunities.org/id/metropolitan-district-council/wolverhampton","707751","T H White Limited","E81689","3.90","Equipment - Purchase","190415718","26/01/2018","Fleet Services","Fleet Management","R4000"
"Wolverhampton City Council","http://opendatacommunities.org/id/metropolitan-district-council/wolverhampton","707751","T H White Limited","E81652","126.66","Equipment - Purchase","190414560","24/01/2018","Fleet Services","Fleet Management","R4000"
"Wolverhampton City Council","http://opendatacommunities.org/id/metropolitan-district-council/wolverhampton","707751","T H White Limited","E81494","22.22","Equipment - Purchase","190410190","10/01/2018","Fleet Services","Fleet Management","R4000"
"Wolverhampton City Council","http://opendatacommunities.org/id/metropolitan-district-council/wolverhampton","707751","T H White Limited","919543","271.64","Equipment - Purchase","190415684","26/01/2018","Fleet Services","Fleet Management","R4000"
"Wolverhampton City Council","http://opendatacommunities.org/id/metropolitan-district-council/wolverhampton","707751","T H White Limited","E81574","45.06","Equipment - Purchase","190415714","26/01/2018","Fleet Services","Fleet Management","R4000"
"Wolverhampton City Council","http://opendatacommunities.org/id/metropolitan-district-council/wolverhampton","707751","T H White Limited","E81574","45.06","Equipment - Purchase","190415714","26/01/2018","Fleet Services","Fleet Management","R4000"
"Wolverhampton City Council","http://opendatacommunities.org/id/metropolitan-district-council/wolverhampton","707751","T H White Limited","E81574","45.06","Equipment - Purchase","190415714","26/01/2018","Fleet Services","Fleet Management","R4000"
"Wolverhampton City Council","http://opendatacommunities.org/id/metropolitan-district-council/wolverhampton","707751","T H White Limited","E81574","59.25","Equipment - Purchase","190415714","26/01/2018","Fleet Services","Fleet Management","R4000"
"Wolverhampton City Council","http://opendatacommunities.org/id/metropolitan-district-council/wolverhampton","707751","T H White Limited","E81574","54.09","Equipment - Purchase","190415714","26/01/2018","Fleet Services","Fleet Management","R4000"
"Wolverhampton City Council","http://opendatacommunities.org/id/metropolitan-district-council/wolverhampton","707751","T H White Limited","E81574","62.94","Equipment - Purchase","190415714","26/01/2018","Fleet Services","Fleet Management","R4000"
"Wolverhampton City Council","http://opendatacommunities.org/id/metropolitan-district-council/wolverhampton","707751","T H White Limited","E81493","22.45","Equipment - Purchase","190410189","10/01/2018","Fleet Services","Fleet Management","R4000"
"Wolverhampton City Council","http://opendatacommunities.org/id/metropolitan-district-council/wolverhampton","707751","T H White Limited","E81493","50.47","Equipment - Purchase","190410189","10/01/2018","Fleet Services","Fleet Management","R4000"
"Wolverhampton City Council","http://opendatacommunities.org/id/metropolitan-district-council/wolverhampton","707751","T H White Limited","E81493","152.36","Equipment - Purchase","190410189","10/01/2018","Fleet Services","Fleet Management","R4000"
"Wolverhampton City Council","http://opendatacommunities.org/id/metropolitan-district-council/wolverhampton","707751","T H White Limited","E81493","26.94","Equipment - Purchase","190410189","10/01/2018","Fleet Services","Fleet Management","R4000"
"Wolverhampton City Council","http://opendatacommunities.org/id/metropolitan-district-council/wolverhampton","707751","T H White Limited","E81493","36.03","Equipment - Purchase","190410189","10/01/2018","Fleet Services","Fleet Management","R4000"
"Wolverhampton City Council","http://opendatacommunities.org/id/metropolitan-district-council/wolverhampton","707751","T H White Limited","E81493","149.53","Equipment - Purchase","190410189","10/01/2018","Fleet Services","Fleet Management","R4000"
"Wolverhampton City Council","http://opendatacommunities.org/id/metropolitan-district-council/wolverhampton","707751","T H White Limited","E81481","135.48","Equipment - Purchase","190410188","10/01/2018","Fleet Services","Fleet Management","R4000"
"Wolverhampton City Council","http://opendatacommunities.org/id/metropolitan-district-council/wolverhampton","707751","T H White Limited","919421","34.38","Equipment - Purchase","190414545","24/01/2018","Fleet Services","Fleet Management","R4000"
"Wolverhampton City Council","http://opendatacommunities.org/id/metropolitan-district-council/wolverhampton","707751","T H White Limited","E81611","111.79","Equipment - Purchase","190413599","19/01/2018","Fleet Services","Fleet Management","R4000"
"Wolverhampton City Council","http://opendatacommunities.org/id/metropolitan-district-council/wolverhampton","707751","T H White Limited","E81611","111.79","Equipment - Purchase","190413599","19/01/2018","Fleet Services","Fleet Management","R4000"
"Wolverhampton City Council","http://opendatacommunities.org/id/metropolitan-district-council/wolverhampton","707751","T H White Limited","E81549","33.44","Equipment - Purchase","190415712","26/01/2018","Fleet Services","Fleet Management","R4000"
"Wolverhampton City Council","http://opendatacommunities.org/id/metropolitan-district-council/wolverhampton","707751","T H White Limited","E81575","27.74","Equipment - Purchase","190415715","26/01/2018","Fleet Services","Fleet Management","R4000"
"Wolverhampton City Council","http://opendatacommunities.org/id/metropolitan-district-council/wolverhampton","707751","T H White Limited","E81693","21.54","Equipment - Purchase","190415719","26/01/2018","Fleet Services","Fleet Management","R4000"
"Wolverhampton City Council","http://opendatacommunities.org/id/metropolitan-district-council/wolverhampton","707794","Taylormade Castings Limited","9031","1,495.00","Construction and Conversion","130200039","05/01/2018","","Parks Strategy and Open Space","C1100"
"Wolverhampton City Council","http://opendatacommunities.org/id/metropolitan-district-council/wolverhampton","707798","The Children�s Society","ARSERV/00000389","11,254.56","TPP - Social Care Support Services","130200714","17/01/2018","Looked After Children","Head of Service - LAC","R5501"
"Wolverhampton City Council","http://opendatacommunities.org/id/metropolitan-district-council/wolverhampton","707817","Team(Energy Auditing Agency Limited)","20172366","3,996.92","Computing - Purchase of Software","190407942","05/01/2018","Corporate Asset Management","Energy Management","R4531"
"Wolverhampton City Council","http://opendatacommunities.org/id/metropolitan-district-council/wolverhampton","707837","Telent:Ttsl Traffic Signals/Technology UK","1107684","1,589.27","TPP - Maintenance on Principal Roads","130200040","05/01/2018","Operation & Maintenance of Existing Network","Traffic Signals","R5700"
"Wolverhampton City Council","http://opendatacommunities.org/id/metropolitan-district-council/wolverhampton","707837","Telent:Ttsl Traffic Signals/Technology UK","1107778","1,365.01","TPP - Maintenance on Principal Roads","130200051","10/01/2018","Operation & Maintenance of Existing Network","Traffic Signals","R5700"
"Wolverhampton City Council","http://opendatacommunities.org/id/metropolitan-district-council/wolverhampton","707837","Telent:Ttsl Traffic Signals/Technology UK","1107773","3,821.89","Construction and Conversion","130200047","10/01/2018","","Transport Structual Maintenance","C1100"
"Wolverhampton City Council","http://opendatacommunities.org/id/metropolitan-district-council/wolverhampton","707837","Telent:Ttsl Traffic Signals/Technology UK","1107932","1,247.87","TPP - Maintenance on Principal Roads","130200052","17/01/2018","Operation & Maintenance of Existing Network","Traffic Signals","R5700"
"Wolverhampton City Council","http://opendatacommunities.org/id/metropolitan-district-council/wolverhampton","707837","Telent:Ttsl Traffic Signals/Technology UK","1107777","1,625.09","TPP - Maintenance Contractor - General","130200050","10/01/2018","Operation & Maintenance of Existing Network","Walsall Recovery Costs","R5720"
"Wolverhampton City Council","http://opendatacommunities.org/id/metropolitan-district-council/wolverhampton","707837","Telent:Ttsl Traffic Signals/Technology UK","1107772","4,573.28","Construction and Conversion","130200046","10/01/2018","","Transport Structual Maintenance","C1100"
"Wolverhampton City Council","http://opendatacommunities.org/id/metropolitan-district-council/wolverhampton","707837","Telent:Ttsl Traffic Signals/Technology UK","1107686","1,760.58","TPP - Maintenance on Principal Roads","130200042","05/01/2018","Operation & Maintenance of Existing Network","Traffic Signals","R5700"
"Wolverhampton City Council","http://opendatacommunities.org/id/metropolitan-district-council/wolverhampton","707837","Telent:Ttsl Traffic Signals/Technology UK","1107775","2,461.20","TPP - Rechargeable Works Costs","130200048","10/01/2018","Operation & Maintenance of Existing Network","Walsall Recovery Costs","R5730"
"Wolverhampton City Council","http://opendatacommunities.org/id/metropolitan-district-council/wolverhampton","707837","Telent:Ttsl Traffic Signals/Technology UK","1107776","1,510.57","TPP - Rechargeable Works Costs","130200049","10/01/2018","Operation & Maintenance of Existing Network","Walsall Recovery Costs","R5730"
"Wolverhampton City Council","http://opendatacommunities.org/id/metropolitan-district-council/wolverhampton","707837","Telent:Ttsl Traffic Signals/Technology UK","1107685","756.45","TPP - Maintenance Contractor - General","130200041","05/01/2018","Operation & Maintenance of Existing Network","UTC Wolverhampton","R5720"
"Wolverhampton City Council","http://opendatacommunities.org/id/metropolitan-district-council/wolverhampton","707837","Telent:Ttsl Traffic Signals/Technology UK","1107731","483.19","TPP - Maintenance Contractor - General","130200043","10/01/2018","Operation & Maintenance of Existing Network","Traffic Signals","R5720"
"Wolverhampton City Council","http://opendatacommunities.org/id/metropolitan-district-council/wolverhampton","707837","Telent:Ttsl Traffic Signals/Technology UK","1107771","4,238.81","Construction and Conversion","130200045","10/01/2018","","Transport Structual Maintenance","C1100"
"Wolverhampton City Council","http://opendatacommunities.org/id/metropolitan-district-council/wolverhampton","707840","Telewest Communications/Virgin Media","044898I0I/00I/I2I7","5.76","Comms - Telephone Call charges","130201124","10/01/2018","Independent Living Service","Telecare","R4505"
"Wolverhampton City Council","http://opendatacommunities.org/id/metropolitan-district-council/wolverhampton","707840","Telewest Communications/Virgin Media","046213701/001/1217","7.50","Comms - Telephone Call charges","130201126","10/01/2018","Independent Living Service","Telecare","R4505"
"Wolverhampton City Council","http://opendatacommunities.org/id/metropolitan-district-council/wolverhampton","707840","Telewest Communications/Virgin Media","044898101/001/1217","5.76","Comms - Telephone Call charges","130201417","10/01/2018","Independent Living Service","Telecare","R4505"
"Wolverhampton City Council","http://opendatacommunities.org/id/metropolitan-district-council/wolverhampton","707840","Telewest Communications/Virgin Media","039360602/001/1217","75.64","Comms - Telephone Rental","130200056","10/01/2018","Looked After Children","Head of Service - LAC","R4504"
"Wolverhampton City Council","http://opendatacommunities.org/id/metropolitan-district-council/wolverhampton","707840","Telewest Communications/Virgin Media","039360602/001/1217","-75.64","Comms - Telephone Rental","130200056","10/01/2018","Looked After Children","Head of Service - LAC","R4504"
"Wolverhampton City Council","http://opendatacommunities.org/id/metropolitan-district-council/wolverhampton","707840","Telewest Communications/Virgin Media","039360602/001/1217","35.64","Comms - Telephone Rental","130200056","10/01/2018","Looked After Children","Head of Service - LAC","R4504"
"Wolverhampton City Council","http://opendatacommunities.org/id/metropolitan-district-council/wolverhampton","707840","Telewest Communications/Virgin Media","039360602/001/1217","40.00","Comms - Telephone Rental","130200056","10/01/2018","Looked After Children","Head of Service - LAC","R4504"
"Wolverhampton City Council","http://opendatacommunities.org/id/metropolitan-district-council/wolverhampton","707840","Telewest Communications/Virgin Media","045047301/001/1217","5.83","Comms - Telephone Call charges","130201125","10/01/2018","Independent Living Service","Telecare","R4505"
"Wolverhampton City Council","http://opendatacommunities.org/id/metropolitan-district-council/wolverhampton","707840","Telewest Communications/Virgin Media","046213701/001/0817","-9.02","Comms - Telephone Call charges","130185895","10/01/2018","Independent Living Service","Telecare","R4505"
"Wolverhampton City Council","http://opendatacommunities.org/id/metropolitan-district-council/wolverhampton","707840","Telewest Communications/Virgin Media","046213601/001/1217","7.50","Comms - Telephone Call charges","130201418","10/01/2018","Independent Living Service","Telecare","R4505"
"Wolverhampton City Council","http://opendatacommunities.org/id/metropolitan-district-council/wolverhampton","707855","Terberg Matec UK Limited","96351133","37.84","Equipment - Purchase","190415700","26/01/2018","Fleet Services","Fleet Management","R4000"
"Wolverhampton City Council","http://opendatacommunities.org/id/metropolitan-district-council/wolverhampton","707855","Terberg Matec UK Limited","96351133","57.05","Equipment - Purchase","190415700","26/01/2018","Fleet Services","Fleet Management","R4000"
"Wolverhampton City Council","http://opendatacommunities.org/id/metropolitan-district-council/wolverhampton","707855","Terberg Matec UK Limited","96351431","22.30","Equipment - Purchase","190413588","19/01/2018","Fleet Services","Fleet Management","R4000"
"Wolverhampton City Council","http://opendatacommunities.org/id/metropolitan-district-council/wolverhampton","707855","Terberg Matec UK Limited","96351273","38.39","Equipment - Purchase","190410760","12/01/2018","Fleet Services","Fleet Management","R4000"
"Wolverhampton City Council","http://opendatacommunities.org/id/metropolitan-district-council/wolverhampton","707858","Tettenhall College","NEF Spring 2018 INST 1","19,125.00","TPP - Private Nursery Education Funding","190415159","26/01/2018","Early Years","Early Years Universal Entitlement for 3 and 4 Year Olds","R5035"
"Wolverhampton City Council","http://opendatacommunities.org/id/metropolitan-district-council/wolverhampton","707859","Tettenhall Pcc","PCR1217","2,957.10","Rent","130203215","24/01/2018","Strategic Organisation Development","Tettenhall Library","R2200"
"Wolverhampton City Council","http://opendatacommunities.org/id/metropolitan-district-council/wolverhampton","707891","The Bigword Interpreting Serv. Limited","INV20172385","40.00","Services - Translation fees","130200780","05/01/2018","Adults Assessment and Care Management MASH","Adult MASH","R4406"
"Wolverhampton City Council","http://opendatacommunities.org/id/metropolitan-district-council/wolverhampton","707891","The Bigword Interpreting Serv. Limited","80032953","12.45","Services - Professional Fees","130203083","24/01/2018","Child Protection","CIN/CP S17  SW Unit - Area 3","R4400"
"Wolverhampton City Council","http://opendatacommunities.org/id/metropolitan-district-council/wolverhampton","707891","The Bigword Interpreting Serv. Limited","INV20195515","32.00","Services - Professional Fees","130200091","24/01/2018","Youth Offending","Youth Offending Team","R4400"
"Wolverhampton City Council","http://opendatacommunities.org/id/metropolitan-district-council/wolverhampton","707891","The Bigword Interpreting Serv. Limited","INV20196014","64.00","Services - Translation fees","130200781","24/01/2018","Child Protection","CIN/CP Social Work Unit - Area 3","R4406"
"Wolverhampton City Council","http://opendatacommunities.org/id/metropolitan-district-council/wolverhampton","707891","The Bigword Interpreting Serv. Limited","INV20194769","72.00","Services - Translation fees","130199241","12/01/2018","Mental Health Assesment & Care Management","Mental Health Assessment & Care Management","R4406"
"Wolverhampton City Council","http://opendatacommunities.org/id/metropolitan-district-council/wolverhampton","707891","The Bigword Interpreting Serv. Limited","INV20195310","64.00","Services - Translation fees","130200080","12/01/2018","Child Protection","CIN/CP Social Work Unit - Area 3","R4406"
"Wolverhampton City Council","http://opendatacommunities.org/id/metropolitan-district-council/wolverhampton","707891","The Bigword Interpreting Serv. Limited","80031091","209.59","Services - Translation fees","130192147","10/01/2018","Child Protection","CIN/CP Social Work Unit - Area 8","R4406"
"Wolverhampton City Council","http://opendatacommunities.org/id/metropolitan-district-council/wolverhampton","707891","The Bigword Interpreting Serv. Limited","INV20195076","32.00","Services - Professional Fees","130200071","10/01/2018","Adults Assessment & Care Management East","Assessment Team (East)","R4400"
"Wolverhampton City Council","http://opendatacommunities.org/id/metropolitan-district-council/wolverhampton","707891","The Bigword Interpreting Serv. Limited","INV20194778","32.00","Services - Professional Fees","130199425","10/01/2018","Child Protection","CIN/CP Social Work Unit - Area 3","R4400"
"Wolverhampton City Council","http://opendatacommunities.org/id/metropolitan-district-council/wolverhampton","707891","The Bigword Interpreting Serv. Limited","INV20194862","48.00","Services - Translation fees","130200060","10/01/2018","Child Protection","CIN/CP Social Work Unit - Area 5","R4406"
"Wolverhampton City Council","http://opendatacommunities.org/id/metropolitan-district-council/wolverhampton","707891","The Bigword Interpreting Serv. Limited","80009804","20.78","Services - Translation fees","130200979","17/01/2018","Child Protection","CIN/CP Social Work Unit - Area 5","R4406"
"Wolverhampton City Council","http://opendatacommunities.org/id/metropolitan-district-council/wolverhampton","707891","The Bigword Interpreting Serv. Limited","INV20195845","32.00","Services - Professional Fees","130200567","17/01/2018","Governance Services","Democratic Support","R4400"
"Wolverhampton City Council","http://opendatacommunities.org/id/metropolitan-district-council/wolverhampton","707891","The Bigword Interpreting Serv. Limited","INV20195723","32.00","Services - Professional Fees","130200561","17/01/2018","Governance Services","Democratic Support","R4400"
"Wolverhampton City Council","http://opendatacommunities.org/id/metropolitan-district-council/wolverhampton","707891","The Bigword Interpreting Serv. Limited","INV20195460","32.00","Services - Professional Fees","130200087","17/01/2018","Carer Support","Carers Support","R4400"
"Wolverhampton City Council","http://opendatacommunities.org/id/metropolitan-district-council/wolverhampton","707891","The Bigword Interpreting Serv. Limited","INV20195594","32.00","Services - Professional Fees","130200100","17/01/2018","Carer Support","Carers Support","R4400"
"Wolverhampton City Council","http://opendatacommunities.org/id/metropolitan-district-council/wolverhampton","707891","The Bigword Interpreting Serv. Limited","INV20195514","48.00","Services - Professional Fees","130200090","17/01/2018","Adults Assessment & Care Management East","Assessment Team (East)","R4400"
"Wolverhampton City Council","http://opendatacommunities.org/id/metropolitan-district-council/wolverhampton","707891","The Bigword Interpreting Serv. Limited","INV20195609","48.00","Services - Translation fees","130200102","17/01/2018","Child Protection","CIN/CP Social Work Unit - Area 3","R4406"
"Wolverhampton City Council","http://opendatacommunities.org/id/metropolitan-district-council/wolverhampton","707891","The Bigword Interpreting Serv. Limited","INV20195517","64.00","Services - Translation fees","130200093","17/01/2018","Child Protection","CIN/CP Social Work Unit - Area 3","R4406"
"Wolverhampton City Council","http://opendatacommunities.org/id/metropolitan-district-council/wolverhampton","707891","The Bigword Interpreting Serv. Limited","INV20187262","32.00","Services - Professional Fees","130189141","17/01/2018","Looked After Children","Looked After Team 1","R4400"
"Wolverhampton City Council","http://opendatacommunities.org/id/metropolitan-district-council/wolverhampton","707891","The Bigword Interpreting Serv. Limited","INV20194595","72.00","Services - Translation fees","130199030","03/01/2018","Child Protection","CIN/CP Social Work Unit - Area 2","R4406"
"Wolverhampton City Council","http://opendatacommunities.org/id/metropolitan-district-council/wolverhampton","707891","The Bigword Interpreting Serv. Limited","INV20170420","40.00","Services - Translation fees","130165773","26/01/2018","Early Intervention","EIP Locality 3 - Graiseley","R4406"
"Wolverhampton City Council","http://opendatacommunities.org/id/metropolitan-district-council/wolverhampton","707891","The Bigword Interpreting Serv. Limited","INV586018","32.97","Services - Professional Fees","130200982","26/01/2018","Customer Services","City Direct","R4400"
"Wolverhampton City Council","http://opendatacommunities.org/id/metropolitan-district-council/wolverhampton","707891","The Bigword Interpreting Serv. Limited","INV20195111","120.00","Services - Translation fees","130200075","26/01/2018","Child Protection","MASH","R4406"
"Wolverhampton City Council","http://opendatacommunities.org/id/metropolitan-district-council/wolverhampton","707891","The Bigword Interpreting Serv. Limited","INV20195572","32.00","Services - Translation fees","130200097","19/01/2018","Child Protection","CIN/CP Social Work Unit - Area 4","R4406"
"Wolverhampton City Council","http://opendatacommunities.org/id/metropolitan-district-council/wolverhampton","707891","The Bigword Interpreting Serv. Limited","80023308","62.65","Services - Translation fees","130200853","03/01/2018","Safeguarding","Head of Service Quality and Safeguarding","R4406"
"Wolverhampton City Council","http://opendatacommunities.org/id/metropolitan-district-council/wolverhampton","707891","The Bigword Interpreting Serv. Limited","INV20194259","32.00","Services - Translation fees","130198763","03/01/2018","Child Protection","CIN/CP Social Work Unit - Area 6","R4406"
"Wolverhampton City Council","http://opendatacommunities.org/id/metropolitan-district-council/wolverhampton","707891","The Bigword Interpreting Serv. Limited","INV20194257","64.00","Services - Translation fees","130198761","03/01/2018","Child Protection","CIN/CP Social Work Unit - Area 1","R4406"
"Wolverhampton City Council","http://opendatacommunities.org/id/metropolitan-district-council/wolverhampton","707891","The Bigword Interpreting Serv. Limited","INV20194265","32.00","Services - Professional Fees","130198769","03/01/2018","Youth Offending","Youth Offending Team","R4400"
"Wolverhampton City Council","http://opendatacommunities.org/id/metropolitan-district-council/wolverhampton","707891","The Bigword Interpreting Serv. Limited","INV20194271","48.00","Services - Professional Fees","130198771","03/01/2018","Child Protection","CIN/CP Social Work Unit - Area 3","R4400"
"Wolverhampton City Council","http://opendatacommunities.org/id/metropolitan-district-council/wolverhampton","707891","The Bigword Interpreting Serv. Limited","INV20194277","32.00","Services - Translation fees","130198777","03/01/2018","Child Protection","CIN/CP Social Work Unit - Area 5","R4406"
"Wolverhampton City Council","http://opendatacommunities.org/id/metropolitan-district-council/wolverhampton","707891","The Bigword Interpreting Serv. Limited","INV20194251","32.00","Services - Professional Fees","130198756","03/01/2018","Adults Assessment & Care Management East","Assessment Team (East)","R4400"
"Wolverhampton City Council","http://opendatacommunities.org/id/metropolitan-district-council/wolverhampton","707891","The Bigword Interpreting Serv. Limited","CRE40005218","-78.00","Services - Translation fees","130204059","31/01/2018","Public Protection","EHTS Operational Costs","R4406"
"Wolverhampton City Council","http://opendatacommunities.org/id/metropolitan-district-council/wolverhampton","707891","The Bigword Interpreting Serv. Limited","INV20192090","32.00","Services - Translation fees","130195776","31/01/2018","Early Intervention","EIP Locality 8 � Children�s Village","R4406"
"Wolverhampton City Council","http://opendatacommunities.org/id/metropolitan-district-council/wolverhampton","707891","The Bigword Interpreting Serv. Limited","inv20192616","48.00","Services - Translation fees","130196798","31/01/2018","Early Intervention","EIP Locality 8 � Children�s Village","R4406"
"Wolverhampton City Council","http://opendatacommunities.org/id/metropolitan-district-council/wolverhampton","707891","The Bigword Interpreting Serv. Limited","INV20195776","32.00","Services - Translation fees","130200564","19/01/2018","Child Protection","CIN/CP Social Work Unit - Area 4","R4406"
"Wolverhampton City Council","http://opendatacommunities.org/id/metropolitan-district-council/wolverhampton","707891","The Bigword Interpreting Serv. Limited","INV20195117","32.00","Services - Translation fees","130200077","19/01/2018","Child Protection","CIN/CP Social Work Unit - Area 4","R4406"
"Wolverhampton City Council","http://opendatacommunities.org/id/metropolitan-district-council/wolverhampton","707891","The Bigword Interpreting Serv. Limited","INV586015","3.27","Services - Translation fees","130200981","26/01/2018","Child Protection","Childrens with Disabilities Team","R4406"
"Wolverhampton City Council","http://opendatacommunities.org/id/metropolitan-district-council/wolverhampton","707891","The Bigword Interpreting Serv. Limited","INV586659","124.80","Services - Translation fees","130201131","26/01/2018","Early Intervention","EIP Locality 3 - Graiseley","R4406"
"Wolverhampton City Council","http://opendatacommunities.org/id/metropolitan-district-council/wolverhampton","707891","The Bigword Interpreting Serv. Limited","INV586767","61.93","Services - Translation fees","130201132","26/01/2018","Child Protection","CIN/CP Social Work Unit - Area 5","R4406"
"Wolverhampton City Council","http://opendatacommunities.org/id/metropolitan-district-council/wolverhampton","707891","The Bigword Interpreting Serv. Limited","INV20194647","64.00","Services - Translation fees","130199031","03/01/2018","Child Protection","Childrens with Disabilities Team","R4406"
"Wolverhampton City Council","http://opendatacommunities.org/id/metropolitan-district-council/wolverhampton","707891","The Bigword Interpreting Serv. Limited","20194593","48.00","Services - Professional Fees","130199026","03/01/2018","Child Protection","CIN/CP Social Work Unit - Area 3","R4400"
"Wolverhampton City Council","http://opendatacommunities.org/id/metropolitan-district-council/wolverhampton","707891","The Bigword Interpreting Serv. Limited","INV20194258","32.00","Services - Translation fees","130198762","03/01/2018","Child Protection","MASH","R4406"
"Wolverhampton City Council","http://opendatacommunities.org/id/metropolitan-district-council/wolverhampton","707891","The Bigword Interpreting Serv. Limited","INV20194276","32.00","Services - Translation fees","130198776","03/01/2018","Child Protection","CIN/CP Social Work Unit - Area 5","R4406"
"Wolverhampton City Council","http://opendatacommunities.org/id/metropolitan-district-council/wolverhampton","707891","The Bigword Interpreting Serv. Limited","INV20194592","32.00","Services - Translation fees","130199029","03/01/2018","Child Protection","CIN/CP Social Work Unit - Area 5","R4406"
"Wolverhampton City Council","http://opendatacommunities.org/id/metropolitan-district-council/wolverhampton","707891","The Bigword Interpreting Serv. Limited","INV20194264","32.00","Services - Translation fees","130198768","03/01/2018","Child Protection","Childrens with Disabilities Team","R4406"
"Wolverhampton City Council","http://opendatacommunities.org/id/metropolitan-district-council/wolverhampton","707891","The Bigword Interpreting Serv. Limited","INV20194253","48.00","Services - Professional Fees","130198758","03/01/2018","Carer Support","Carers Support","R4400"
"Wolverhampton City Council","http://opendatacommunities.org/id/metropolitan-district-council/wolverhampton","707891","The Bigword Interpreting Serv. Limited","INV20194688","78.00","Services - Translation fees","130198781","31/01/2018","Public Protection","EHTS Operational Costs","R4406"
"Wolverhampton City Council","http://opendatacommunities.org/id/metropolitan-district-council/wolverhampton","707891","The Bigword Interpreting Serv. Limited","INV20188670","32.00","Services - Translation fees","130191076","31/01/2018","Early Intervention","EIP Locality 3 - Graiseley","R4406"
"Wolverhampton City Council","http://opendatacommunities.org/id/metropolitan-district-council/wolverhampton","707891","The Bigword Interpreting Serv. Limited","80032954","22.75","Services - Professional Fees","130197841","31/01/2018","Child Protection","CIN/CP S17  SW Unit - Area 3","R4400"
"Wolverhampton City Council","http://opendatacommunities.org/id/metropolitan-district-council/wolverhampton","707891","The Bigword Interpreting Serv. Limited","INV20195426","32.00","Services - Professional Fees","130200086","17/01/2018","Child Protection","CIN/CP Social Work Unit - Area 3","R4400"
"Wolverhampton City Council","http://opendatacommunities.org/id/metropolitan-district-council/wolverhampton","707891","The Bigword Interpreting Serv. Limited","INV20195425","48.00","Services - Professional Fees","130200085","17/01/2018","Child Protection","CIN/CP Social Work Unit - Area 3","R4400"
"Wolverhampton City Council","http://opendatacommunities.org/id/metropolitan-district-council/wolverhampton","707891","The Bigword Interpreting Serv. Limited","INV20195501","64.00","Services - Professional Fees","130200088","17/01/2018","Looked After Children","Fostering Team & Allowances","R4400"
"Wolverhampton City Council","http://opendatacommunities.org/id/metropolitan-district-council/wolverhampton","707891","The Bigword Interpreting Serv. Limited","INV20195722","32.00","Services - Professional Fees","130200560","17/01/2018","Governance Services","Democratic Support","R4400"
"Wolverhampton City Council","http://opendatacommunities.org/id/metropolitan-district-council/wolverhampton","707891","The Bigword Interpreting Serv. Limited","INV20195520","48.00","Services - Translation fees","130200096","17/01/2018","Child Protection","CIN/CP Social Work Unit - Area 2","R4406"
"Wolverhampton City Council","http://opendatacommunities.org/id/metropolitan-district-council/wolverhampton","707891","The Bigword Interpreting Serv. Limited","INV20195844","32.00","Services - Translation fees","130200566","17/01/2018","Child Protection","Childrens with Disabilities Team","R4406"
"Wolverhampton City Council","http://opendatacommunities.org/id/metropolitan-district-council/wolverhampton","707891","The Bigword Interpreting Serv. Limited","INV20195720","40.00","Services - Professional Fees","130200558","17/01/2018","Adults Assessment & Care Management East","Assessment Team (East)","R4400"
"Wolverhampton City Council","http://opendatacommunities.org/id/metropolitan-district-council/wolverhampton","707891","The Bigword Interpreting Serv. Limited","INV20195593","32.00","Services - Professional Fees","130200099","17/01/2018","Governance Services","Democratic Support","R4400"
"Wolverhampton City Council","http://opendatacommunities.org/id/metropolitan-district-council/wolverhampton","707891","The Bigword Interpreting Serv. Limited","80023128","392.32","Services - Professional Fees","130201128","10/01/2018","Child Protection","CIN/CP Social Work Unit - Area 8","R4400"
"Wolverhampton City Council","http://opendatacommunities.org/id/metropolitan-district-council/wolverhampton","707891","The Bigword Interpreting Serv. Limited","INV20194931","32.00","Services - Translation fees","130200068","10/01/2018","Child Protection","CIN/CP Social Work Unit - Area 5","R4406"
"Wolverhampton City Council","http://opendatacommunities.org/id/metropolitan-district-council/wolverhampton","707891","The Bigword Interpreting Serv. Limited","INV20195114","40.00","Services - Professional Fees","130200076","10/01/2018","Independent Living Service","Independent Living Service","R4400"
"Wolverhampton City Council","http://opendatacommunities.org/id/metropolitan-district-council/wolverhampton","707891","The Bigword Interpreting Serv. Limited","INV20192513","32.00","Services - Translation fees","130196601","10/01/2018","Mental Health Assesment & Care Management","Mental Health Assessment & Care Management","R4406"
"Wolverhampton City Council","http://opendatacommunities.org/id/metropolitan-district-council/wolverhampton","707891","The Bigword Interpreting Serv. Limited","INV20194687","32.00","Services - Professional Fees","130199240","05/01/2018","Child Protection","CIN/CP Social Work Unit - Area 3","R4400"
"Wolverhampton City Council","http://opendatacommunities.org/id/metropolitan-district-council/wolverhampton","707891","The Bigword Interpreting Serv. Limited","INV20194848","32.00","Services - Professional Fees","130200059","24/01/2018","Youth Offending","Youth Offending Team","R4400"
"Wolverhampton City Council","http://opendatacommunities.org/id/metropolitan-district-council/wolverhampton","707891","The Bigword Interpreting Serv. Limited","80033968","12.80","Services - Translation fees","130200720","24/01/2018","Child Protection","CIN/CP Social Work Unit - Area 3","R4406"
"Wolverhampton City Council","http://opendatacommunities.org/id/metropolitan-district-council/wolverhampton","707891","The Bigword Interpreting Serv. Limited","INV20194679","64.00","Services - Translation fees","130199033","05/01/2018","Child Protection","CIN/CP Social Work Unit - Area 4","R4406"
"Wolverhampton City Council","http://opendatacommunities.org/id/metropolitan-district-council/wolverhampton","707891","The Bigword Interpreting Serv. Limited","INV20183831","64.00","Services - Professional Fees","130183286","24/01/2018","Carer Support","Carers Support","R4400"
"Wolverhampton City Council","http://opendatacommunities.org/id/metropolitan-district-council/wolverhampton","707891","The Bigword Interpreting Serv. Limited","INV20195418","40.00","Services - Professional Fees","130200084","12/01/2018","Adults Assessment & Care Management East","Assessment Team (East)","R4400"
"Wolverhampton City Council","http://opendatacommunities.org/id/metropolitan-district-council/wolverhampton","707891","The Bigword Interpreting Serv. Limited","INV20192089","40.00","Services - Translation fees","130195775","19/01/2018","Child Protection","CIN/CP Social Work Unit - Area 6","R4406"
"Wolverhampton City Council","http://opendatacommunities.org/id/metropolitan-district-council/wolverhampton","707891","The Bigword Interpreting Serv. Limited","INV20195414","96.00","Services - Translation fees","130200083","12/01/2018","Child Protection","CIN/CP Social Work Unit - Area 7","R4406"
"Wolverhampton City Council","http://opendatacommunities.org/id/metropolitan-district-council/wolverhampton","707891","The Bigword Interpreting Serv. Limited","INV20194256","80.00","Services - Translation fees","130198760","03/01/2018","Child Protection","CIN/CP Social Work Unit - Area 1","R4406"
"Wolverhampton City Council","http://opendatacommunities.org/id/metropolitan-district-council/wolverhampton","707891","The Bigword Interpreting Serv. Limited","INV20192727","32.00","Services - Translation fees","130197103","05/01/2018","Child Protection","CIN/CP Social Work Unit - Area 4","R4406"
"Wolverhampton City Council","http://opendatacommunities.org/id/metropolitan-district-council/wolverhampton","707891","The Bigword Interpreting Serv. Limited","INV20195907","32.00","Services - Professional Fees","130200721","24/01/2018","Independent Living Service","Independent Living Service","R4400"
"Wolverhampton City Council","http://opendatacommunities.org/id/metropolitan-district-council/wolverhampton","707891","The Bigword Interpreting Serv. Limited","INV20195868","80.00","Services - Professional Fees","130200568","24/01/2018","Child Protection","CIN/CP Social Work Unit - Area 8","R4400"
"Wolverhampton City Council","http://opendatacommunities.org/id/metropolitan-district-council/wolverhampton","707891","The Bigword Interpreting Serv. Limited","INV20194268","48.00","Services - Translation fees","130198422","05/01/2018","Adults Assessment & Care Management West","Adult Services � West","R4406"
"Wolverhampton City Council","http://opendatacommunities.org/id/metropolitan-district-council/wolverhampton","707891","The Bigword Interpreting Serv. Limited","INV20158381","68.25","Services - Translation fees","130201830","12/01/2018","Healthier Places Service","Healthy Lifestyles Team","R4406"
"Wolverhampton City Council","http://opendatacommunities.org/id/metropolitan-district-council/wolverhampton","707891","The Bigword Interpreting Serv. Limited","INV20180102","48.00","Services - Translation fees","130178218","12/01/2018","Child Protection","CIN/CP Social Work Unit - Area 4","R4406"
"Wolverhampton City Council","http://opendatacommunities.org/id/metropolitan-district-council/wolverhampton","707891","The Bigword Interpreting Serv. Limited","INV20195596","32.00","Services - Translation fees","130200101","17/01/2018","Child Protection","CIN/CP Social Work Unit - Area 7","R4406"
"Wolverhampton City Council","http://opendatacommunities.org/id/metropolitan-district-council/wolverhampton","707891","The Bigword Interpreting Serv. Limited","INV20194910","48.00","Services - Professional Fees","130200063","17/01/2018","Child Protection","CIN/CP Social Work Unit - Area 3","R4400"
"Wolverhampton City Council","http://opendatacommunities.org/id/metropolitan-district-council/wolverhampton","707891","The Bigword Interpreting Serv. Limited","INV20194911","32.00","Services - Professional Fees","130200064","17/01/2018","Child Protection","CIN/CP Social Work Unit - Area 3","R4400"
"Wolverhampton City Council","http://opendatacommunities.org/id/metropolitan-district-council/wolverhampton","707891","The Bigword Interpreting Serv. Limited","INV20195725","32.00","Services - Translation fees","130200563","17/01/2018","Child Protection","CIN/CP Social Work Unit - Area 3","R4406"
"Wolverhampton City Council","http://opendatacommunities.org/id/metropolitan-district-council/wolverhampton","707891","The Bigword Interpreting Serv. Limited","INV20195516","48.00","Services - Professional Fees","130200092","17/01/2018","Child Protection","CIN/CP Social Work Unit - Area 3","R4400"
"Wolverhampton City Council","http://opendatacommunities.org/id/metropolitan-district-council/wolverhampton","707891","The Bigword Interpreting Serv. Limited","80008455","546.29","Services - Translation fees","130201622","17/01/2018","Child Protection","Childrens with Disabilities Team","R4406"
"Wolverhampton City Council","http://opendatacommunities.org/id/metropolitan-district-council/wolverhampton","707891","The Bigword Interpreting Serv. Limited","INV20195721","48.00","Services - Translation fees","130200559","17/01/2018","Child Protection","CIN/CP Social Work Unit - Area 3","R4406"
"Wolverhampton City Council","http://opendatacommunities.org/id/metropolitan-district-council/wolverhampton","707891","The Bigword Interpreting Serv. Limited","INV20195660","64.00","Services - Professional Fees","130200105","17/01/2018","Child Protection","CIN/CP Social Work Unit - Area 8","R4400"
"Wolverhampton City Council","http://opendatacommunities.org/id/metropolitan-district-council/wolverhampton","707891","The Bigword Interpreting Serv. Limited","INV20195518","32.00","Services - Translation fees","130200094","17/01/2018","Child Protection","CIN/CP Social Work Unit - Area 3","R4406"
"Wolverhampton City Council","http://opendatacommunities.org/id/metropolitan-district-council/wolverhampton","707891","The Bigword Interpreting Serv. Limited","INV20194897","32.00","Services - Translation fees","130200061","10/01/2018","Child Protection","CIN/CP Social Work Unit - Area 4","R4406"
"Wolverhampton City Council","http://opendatacommunities.org/id/metropolitan-district-council/wolverhampton","707891","The Bigword Interpreting Serv. Limited","INV20194932","64.00","Services - Translation fees","130200069","10/01/2018","Child Protection","CIN/CP Social Work Unit - Area 5","R4406"
"Wolverhampton City Council","http://opendatacommunities.org/id/metropolitan-district-council/wolverhampton","707891","The Bigword Interpreting Serv. Limited","INV20194930","48.00","Services - Translation fees","130200067","10/01/2018","Child Protection","CIN/CP Social Work Unit - Area 5","R4406"
"Wolverhampton City Council","http://opendatacommunities.org/id/metropolitan-district-council/wolverhampton","707891","The Bigword Interpreting Serv. Limited","INV20195077","32.00","Services - Professional Fees","130200072","10/01/2018","Safeguarding","MCA General","R4400"
"Wolverhampton City Council","http://opendatacommunities.org/id/metropolitan-district-council/wolverhampton","707891","The Bigword Interpreting Serv. Limited","INV20194675","56.00","Services - Translation fees","130199032","03/01/2018","Child Protection","Childrens with Disabilities Team","R4406"
"Wolverhampton City Council","http://opendatacommunities.org/id/metropolitan-district-council/wolverhampton","707891","The Bigword Interpreting Serv. Limited","INV586571","112.96","Services - Translation fees","130201130","26/01/2018","Child Protection","CIN/CP Social Work Unit - Area 7","R4406"
"Wolverhampton City Council","http://opendatacommunities.org/id/metropolitan-district-council/wolverhampton","707891","The Bigword Interpreting Serv. Limited","INV586011","31.50","Services - Translation fees","130200980","26/01/2018","Child Protection","CIN/CP Social Work Unit - Area 6","R4406"
"Wolverhampton City Council","http://opendatacommunities.org/id/metropolitan-district-council/wolverhampton","707891","The Bigword Interpreting Serv. Limited","INV581730","98.64","Services - Translation fees","130194382","26/01/2018","Early Intervention","EIP Locality 3 - Graiseley","R4406"
"Wolverhampton City Council","http://opendatacommunities.org/id/metropolitan-district-council/wolverhampton","707891","The Bigword Interpreting Serv. Limited","INV20194590","56.00","Services - Professional Fees","130199027","03/01/2018","Adults Assessment & Care Management East","Assessment Team (East)","R4400"
"Wolverhampton City Council","http://opendatacommunities.org/id/metropolitan-district-council/wolverhampton","707891","The Bigword Interpreting Serv. Limited","INV20194278","64.00","Services - Professional Fees","130198778","03/01/2018","Child Protection","CIN/CP Social Work Unit - Area 8","R4400"
"Wolverhampton City Council","http://opendatacommunities.org/id/metropolitan-district-council/wolverhampton","707891","The Bigword Interpreting Serv. Limited","INV20195672","32.00","Services - Translation fees","130200106","19/01/2018","Child Protection","CIN/CP Social Work Unit - Area 4","R4406"
"Wolverhampton City Council","http://opendatacommunities.org/id/metropolitan-district-council/wolverhampton","707891","The Bigword Interpreting Serv. Limited","INV20195089","64.00","Services - Translation fees","130200074","19/01/2018","Child Protection","CIN/CP Social Work Unit - Area 4","R4406"
"Wolverhampton City Council","http://opendatacommunities.org/id/metropolitan-district-council/wolverhampton","707891","The Bigword Interpreting Serv. Limited","INV20192242","32.00","Services - Translation fees","130196138","31/01/2018","Early Intervention","EIP Locality 8 � Children�s Village","R4406"
"Wolverhampton City Council","http://opendatacommunities.org/id/metropolitan-district-council/wolverhampton","707891","The Bigword Interpreting Serv. Limited","INV20192697","72.00","Services - Translation fees","130196954","31/01/2018","Early Intervention","EIP Locality 8 � Children�s Village","R4406"
"Wolverhampton City Council","http://opendatacommunities.org/id/metropolitan-district-council/wolverhampton","707891","The Bigword Interpreting Serv. Limited","INV20189871","80.00","Services - Translation fees","130192788","31/01/2018","Child Protection","CIN/CP Social Work Unit - Area 8","R4406"
"Wolverhampton City Council","http://opendatacommunities.org/id/metropolitan-district-council/wolverhampton","707891","The Bigword Interpreting Serv. Limited","INV20194260","32.00","Services - Professional Fees","130198764","03/01/2018","Governance Services","Democratic Support","R4400"
"Wolverhampton City Council","http://opendatacommunities.org/id/metropolitan-district-council/wolverhampton","707891","The Bigword Interpreting Serv. Limited","INV20194262","32.00","Services - Professional Fees","130198766","03/01/2018","Governance Services","Democratic Support","R4400"
"Wolverhampton City Council","http://opendatacommunities.org/id/metropolitan-district-council/wolverhampton","707891","The Bigword Interpreting Serv. Limited","INV20194252","32.00","Services - Professional Fees","130198757","03/01/2018","Adults Assessment & Care Management East","Assessment Team (East)","R4400"
"Wolverhampton City Council","http://opendatacommunities.org/id/metropolitan-district-council/wolverhampton","707891","The Bigword Interpreting Serv. Limited","INV20194272","48.00","Services - Professional Fees","130198772","03/01/2018","Child Protection","CIN/CP Social Work Unit - Area 3","R4400"
"Wolverhampton City Council","http://opendatacommunities.org/id/metropolitan-district-council/wolverhampton","707891","The Bigword Interpreting Serv. Limited","INV20194273","32.00","Services - Professional Fees","130198773","03/01/2018","Child Protection","CIN/CP Social Work Unit - Area 3","R4400"
"Wolverhampton City Council","http://opendatacommunities.org/id/metropolitan-district-council/wolverhampton","707891","The Bigword Interpreting Serv. Limited","INV20194280","32.00","Services - Translation fees","130198780","03/01/2018","Early Intervention","EIP Locality 5 � Whitmore Reans","R4406"
"Wolverhampton City Council","http://opendatacommunities.org/id/metropolitan-district-council/wolverhampton","707891","The Bigword Interpreting Serv. Limited","INV20195075","48.00","Services - Professional Fees","130200070","10/01/2018","Carer Support","Carers Support","R4400"
"Wolverhampton City Council","http://opendatacommunities.org/id/metropolitan-district-council/wolverhampton","707891","The Bigword Interpreting Serv. Limited","INV20178293","160.00","Services - Professional Fees","130175566","10/01/2018","Looked After Children","Fostering Team & Allowances","R4400"
"Wolverhampton City Council","http://opendatacommunities.org/id/metropolitan-district-council/wolverhampton","707891","The Bigword Interpreting Serv. Limited","INV20194913","32.00","Services - Translation fees","130200066","10/01/2018","Child Protection","CIN/CP Social Work Unit - Area 3","R4406"
"Wolverhampton City Council","http://opendatacommunities.org/id/metropolitan-district-council/wolverhampton","707891","The Bigword Interpreting Serv. Limited","INV20195267","64.00","Services - Translation fees","130200079","10/01/2018","Child Protection","CIN/CP Social Work Unit - Area 3","R4406"
"Wolverhampton City Council","http://opendatacommunities.org/id/metropolitan-district-council/wolverhampton","707891","The Bigword Interpreting Serv. Limited","INV20195317","40.00","Services - Professional Fees","130200082","12/01/2018","Governance Services","Democratic Support","R4400"
"Wolverhampton City Council","http://opendatacommunities.org/id/metropolitan-district-council/wolverhampton","707891","The Bigword Interpreting Serv. Limited","INV20195316","48.00","Services - Professional Fees","130200081","12/01/2018","Safeguarding","MCA General","R4400"
"Wolverhampton City Council","http://opendatacommunities.org/id/metropolitan-district-council/wolverhampton","707891","The Bigword Interpreting Serv. Limited","INV20195519","48.00","Services - Translation fees","130200095","17/01/2018","Child Protection","CIN/CP Social Work Unit - Area 3","R4406"
"Wolverhampton City Council","http://opendatacommunities.org/id/metropolitan-district-council/wolverhampton","707891","The Bigword Interpreting Serv. Limited","INV20195610","32.00","Services - Translation fees","130200103","17/01/2018","Child Protection","CIN/CP Social Work Unit - Area 3","R4406"
"Wolverhampton City Council","http://opendatacommunities.org/id/metropolitan-district-council/wolverhampton","707891","The Bigword Interpreting Serv. Limited","INV20195828","32.00","Services - Translation fees","130200565","17/01/2018","Child Protection","CIN/CP Social Work Unit - Area 5","R4406"
"Wolverhampton City Council","http://opendatacommunities.org/id/metropolitan-district-council/wolverhampton","707891","The Bigword Interpreting Serv. Limited","80026665","14.44","Services - Translation fees","130201129","17/01/2018","Child Protection","CIN/CP Social Work Unit - Area 5","R4406"
"Wolverhampton City Council","http://opendatacommunities.org/id/metropolitan-district-council/wolverhampton","707891","The Bigword Interpreting Serv. Limited","INV20195592","32.00","Services - Professional Fees","130200098","17/01/2018","Governance Services","Democratic Support","R4400"
"Wolverhampton City Council","http://opendatacommunities.org/id/metropolitan-district-council/wolverhampton","707891","The Bigword Interpreting Serv. Limited","INV20194912","32.00","Services - Professional Fees","130200065","17/01/2018","Child Protection","CIN/CP Social Work Unit - Area 3","R4400"
"Wolverhampton City Council","http://opendatacommunities.org/id/metropolitan-district-council/wolverhampton","707891","The Bigword Interpreting Serv. Limited","80030700","1.90","Services - Professional Fees","130200717","17/01/2018","Child Protection","CIN/CP Social Work Unit - Area 3","R4400"
"Wolverhampton City Council","http://opendatacommunities.org/id/metropolitan-district-council/wolverhampton","707891","The Bigword Interpreting Serv. Limited","INV20195142","48.00","Services - Professional Fees","130200078","17/01/2018","Child Protection","CIN/CP Social Work Unit - Area 3","R4400"
"Wolverhampton City Council","http://opendatacommunities.org/id/metropolitan-district-council/wolverhampton","707891","The Bigword Interpreting Serv. Limited","INV20195724","48.00","Services - Professional Fees","130200562","17/01/2018","Child Protection","CIN/CP Social Work Unit - Area 3","R4400"
"Wolverhampton City Council","http://opendatacommunities.org/id/metropolitan-district-council/wolverhampton","707891","The Bigword Interpreting Serv. Limited","80033950","29.54","Services - Professional Fees","130200718","24/01/2018","Looked After Children","Looked After Team 1","R4400"
"Wolverhampton City Council","http://opendatacommunities.org/id/metropolitan-district-council/wolverhampton","707891","The Bigword Interpreting Serv. Limited","80033961","373.54","Services - Translation fees","130200719","24/01/2018","Child Protection","CIN/CP Social Work Unit - Area 3","R4406"
"Wolverhampton City Council","http://opendatacommunities.org/id/metropolitan-district-council/wolverhampton","707891","The Bigword Interpreting Serv. Limited","80031090","284.34","Services - Translation fees","130192146","24/01/2018","Child Protection","Childrens with Disabilities Team","R4406"
"Wolverhampton City Council","http://opendatacommunities.org/id/metropolitan-district-council/wolverhampton","707891","The Bigword Interpreting Serv. Limited","INV20194269","48.00","Services - Translation fees","130198770","05/01/2018","Adults Assessment & Care Management West","Adult Services � West","R4406"
"Wolverhampton City Council","http://opendatacommunities.org/id/metropolitan-district-council/wolverhampton","707891","The Bigword Interpreting Serv. Limited","INV20194267","32.00","Services - Translation fees","130198421","05/01/2018","Adults Assessment & Care Management West","Adult Services � West","R4406"
"Wolverhampton City Council","http://opendatacommunities.org/id/metropolitan-district-council/wolverhampton","707891","The Bigword Interpreting Serv. Limited","INV20194338","78.00","Services - Translation fees","130198604","03/01/2018","Looked After Children","LAC Transitions Team","R4406"
"Wolverhampton City Council","http://opendatacommunities.org/id/metropolitan-district-council/wolverhampton","707891","The Bigword Interpreting Serv. Limited","INV586014","3.23","Services - Professional Fees","130201434","26/01/2018","Independent Living Service","Independent Living Service","R4400"
"Wolverhampton City Council","http://opendatacommunities.org/id/metropolitan-district-council/wolverhampton","707891","The Bigword Interpreting Serv. Limited","INV586906","165.27","Services - Translation fees","130201133","26/01/2018","Child Protection","MASH","R4406"
"Wolverhampton City Council","http://opendatacommunities.org/id/metropolitan-district-council/wolverhampton","707891","The Bigword Interpreting Serv. Limited","INV20195088","32.00","Services - Translation fees","130200073","19/01/2018","Child Protection","CIN/CP Social Work Unit - Area 4","R4406"
"Wolverhampton City Council","http://opendatacommunities.org/id/metropolitan-district-council/wolverhampton","707891","The Bigword Interpreting Serv. Limited","INV20195673","32.00","Services - Translation fees","130200107","19/01/2018","Child Protection","CIN/CP Social Work Unit - Area 4","R4406"
"Wolverhampton City Council","http://opendatacommunities.org/id/metropolitan-district-council/wolverhampton","707891","The Bigword Interpreting Serv. Limited","INV20194279","64.00","Services - Professional Fees","130198779","03/01/2018","Child Protection","CIN/CP Social Work Unit - Area 8","R4400"
"Wolverhampton City Council","http://opendatacommunities.org/id/metropolitan-district-council/wolverhampton","707891","The Bigword Interpreting Serv. Limited","INV20194275","32.00","Services - Translation fees","130198775","03/01/2018","Child Protection","CIN/CP Social Work Unit - Area 4","R4406"
"Wolverhampton City Council","http://opendatacommunities.org/id/metropolitan-district-council/wolverhampton","707891","The Bigword Interpreting Serv. Limited","INV20194274","48.00","Services - Professional Fees","130198774","03/01/2018","Child Protection","CIN/CP Social Work Unit - Area 3","R4400"
"Wolverhampton City Council","http://opendatacommunities.org/id/metropolitan-district-council/wolverhampton","707891","The Bigword Interpreting Serv. Limited","INV20194263","32.00","Services - Translation fees","130198767","03/01/2018","Child Protection","Childrens with Disabilities Team","R4406"
"Wolverhampton City Council","http://opendatacommunities.org/id/metropolitan-district-council/wolverhampton","707891","The Bigword Interpreting Serv. Limited","INV20194261","32.00","Services - Professional Fees","130198765","03/01/2018","Governance Services","Democratic Support","R4400"
"Wolverhampton City Council","http://opendatacommunities.org/id/metropolitan-district-council/wolverhampton","707891","The Bigword Interpreting Serv. Limited","INV20194591","32.00","Services - Translation fees","130199028","03/01/2018","Early Intervention","EIP Locality 3 - Graiseley","R4406"
"Wolverhampton City Council","http://opendatacommunities.org/id/metropolitan-district-council/wolverhampton","707891","The Bigword Interpreting Serv. Limited","INV20194255","32.00","Services - Translation fees","130198759","03/01/2018","Child Protection","CIN/CP Social Work Unit - Area 5","R4406"
"Wolverhampton City Council","http://opendatacommunities.org/id/metropolitan-district-council/wolverhampton","707891","The Bigword Interpreting Serv. Limited","80015731","12.64","Services - Professional Fees","130203216","31/01/2018","Child Protection","CIN/CP Social Work Unit - Area 8","R4400"
"Wolverhampton City Council","http://opendatacommunities.org/id/metropolitan-district-council/wolverhampton","707891","The Bigword Interpreting Serv. Limited","inv20192617","64.00","Services - Translation fees","130196799","31/01/2018","Early Intervention","EIP Locality 8 � Children�s Village","R4406"
"Wolverhampton City Council","http://opendatacommunities.org/id/metropolitan-district-council/wolverhampton","707891","The Bigword Interpreting Serv. Limited","INV20193014","32.00","Services - Translation fees","130197459","31/01/2018","Early Intervention","EIP Locality 8 � Children�s Village","R4406"
"Wolverhampton City Council","http://opendatacommunities.org/id/metropolitan-district-council/wolverhampton","707904","The British Library","139795875","14.65","Books","130201435","26/01/2018","Strategic Organisation Development","Global Budgets","R4309"
"Wolverhampton City Council","http://opendatacommunities.org/id/metropolitan-district-council/wolverhampton","707946","The Disabled Adaptations Service","16/0700/DFG","340.90","Grants paid out","190408477","05/01/2018","","Disabled Facilities Grants","C5000"
"Wolverhampton City Council","http://opendatacommunities.org/id/metropolitan-district-council/wolverhampton","707976","The Grange Residential Home","P162449 04021820180116","2,080.00","TPP - Residential Care - Long Term","190412767","17/01/2018","Older People Care Purchasing","OP Care Purchasing (Spot Placements)","R5400"
"Wolverhampton City Council","http://opendatacommunities.org/id/metropolitan-district-council/wolverhampton","707985","The Headset Company UK Limited","4052337","63.90","Equipment - Purchase","130201777","31/01/2018","Customer Services","City Direct","R4000"
"Wolverhampton City Council","http://opendatacommunities.org/id/metropolitan-district-council/wolverhampton","707986","The Helping Hand Company","308660","910.00","Equipment - R & M","130200112","17/01/2018","Independent Living Service","Independent Living Service","R4003"
"Wolverhampton City Council","http://opendatacommunities.org/id/metropolitan-district-council/wolverhampton","707986","The Helping Hand Company","308359","199.60","Equipment - Purchase","130200111","10/01/2018","Independent Living Service","Independent Living Service","R4000"
"Wolverhampton City Council","http://opendatacommunities.org/id/metropolitan-district-council/wolverhampton","708013","The Law Society","SIN10123705","320.00","Services - Professional Fees","190411385","17/01/2018","Legal Services","Legal Services","R4400"
"Wolverhampton City Council","http://opendatacommunities.org/id/metropolitan-district-council/wolverhampton","708031","The Marlowe School","2148698","2,857.16","TPP - Alternative Provision of Education","130201971","31/01/2018","Looked After Children","Out of City - Pooled Budget","R5037"
"Wolverhampton City Council","http://opendatacommunities.org/id/metropolitan-district-council/wolverhampton","708082","The Queen Victoria Hotel","P16364320180123","360.00","TPP - Accommodation","190415078","24/01/2018","Learning Disabilities Care Purchasing","LD Care Purchasing (Spot Placements)","R5603"
"Wolverhampton City Council","http://opendatacommunities.org/id/metropolitan-district-council/wolverhampton","708090","The Refugee And Migrant Centre Limited","952","10,833.00","TPP - Supporting People - Block Gross","130202153","17/01/2018","Housing Revenue Account","Single non statutory homelessness","R5451"
"Wolverhampton City Council","http://opendatacommunities.org/id/metropolitan-district-council/wolverhampton","708090","The Refugee And Migrant Centre Limited","934","10,833.00","TPP - Supporting People - Block Gross","130200722","03/01/2018","Housing Revenue Account","Single non statutory homelessness","R5451"
"Wolverhampton City Council","http://opendatacommunities.org/id/metropolitan-district-council/wolverhampton","708090","The Refugee And Migrant Centre Limited","947","1,970.00","TPP - Social Care Support Services","130202152","17/01/2018","Early Intervention","Transformation Challenge Award","R5501"
"Wolverhampton City Council","http://opendatacommunities.org/id/metropolitan-district-council/wolverhampton","708090","The Refugee And Migrant Centre Limited","944","10,833.00","TPP - Supporting People - Block Gross","130201437","17/01/2018","Housing Revenue Account","Single non statutory homelessness","R5451"
"Wolverhampton City Council","http://opendatacommunities.org/id/metropolitan-district-council/wolverhampton","708090","The Refugee And Migrant Centre Limited","946","1,970.00","TPP - Social Care Support Services","130202151","17/01/2018","Early Intervention","Transformation Challenge Award","R5501"
"Wolverhampton City Council","http://opendatacommunities.org/id/metropolitan-district-council/wolverhampton","708090","The Refugee And Migrant Centre Limited","925","5,567.00","TPP - Social Care Support Services","130201436","17/01/2018","Housing Revenue Account","Single non statutory homelessness","R5501"
"Wolverhampton City Council","http://opendatacommunities.org/id/metropolitan-district-council/wolverhampton","708099","The Royal Wolverhampton Hospitals","0000210953","42,092.92","TPP - Payments to Health Authorities","130197129","03/01/2018","Standards and Vulnerable Pupils","SEN Special Education Admin","R5101"
"Wolverhampton City Council","http://opendatacommunities.org/id/metropolitan-district-council/wolverhampton","708099","The Royal Wolverhampton Hospitals","0000212630","3,882.92","TPP - Payments to Local Authorities","130201446","26/01/2018","Adults Assessment & Care Management West","Hospital Team","R5100"
"Wolverhampton City Council","http://opendatacommunities.org/id/metropolitan-district-council/wolverhampton","708099","The Royal Wolverhampton Hospitals","0000212589","192,956.00","TPP - Public Health Contracts","130201444","26/01/2018","Contracts","Sexual Health","R5060"
"Wolverhampton City Council","http://opendatacommunities.org/id/metropolitan-district-council/wolverhampton","708099","The Royal Wolverhampton Hospitals","0000212551","18,184.00","TPP - Public Health Contracts","130201439","26/01/2018","Contracts","LA Role in Health Protection","R5060"
"Wolverhampton City Council","http://opendatacommunities.org/id/metropolitan-district-council/wolverhampton","708099","The Royal Wolverhampton Hospitals","0000209408","990.00","TPP - Payments to Local Authorities","130191941","31/01/2018","Adults Assessment & Care Management West","Hospital Team","R5100"
"Wolverhampton City Council","http://opendatacommunities.org/id/metropolitan-district-council/wolverhampton","708099","The Royal Wolverhampton Hospitals","0000209406","776.58","TPP - Payments to Local Authorities","130191940","31/01/2018","Adults Assessment & Care Management West","Hospital Team","R5100"
"Wolverhampton City Council","http://opendatacommunities.org/id/metropolitan-district-council/wolverhampton","708099","The Royal Wolverhampton Hospitals","0000212731","4,141.29","TPP - Nursing Care - Long Term","130201450","31/01/2018","Older People Care Purchasing","OP Care Purchasing (Spot Placements)","R5410"
"Wolverhampton City Council","http://opendatacommunities.org/id/metropolitan-district-council/wolverhampton","708099","The Royal Wolverhampton Hospitals","0000211773","44,055.88","TPP - Payments to Health Authorities","130199034","03/01/2018","Independent Living Service","Independent Living Service","R5101"
"Wolverhampton City Council","http://opendatacommunities.org/id/metropolitan-district-council/wolverhampton","708099","The Royal Wolverhampton Hospitals","0000211773","-44,055.88","TPP - Payments to Health Authorities","130199034","03/01/2018","Independent Living Service","Independent Living Service","R5101"
"Wolverhampton City Council","http://opendatacommunities.org/id/metropolitan-district-council/wolverhampton","708099","The Royal Wolverhampton Hospitals","0000211773","44,055.88","TPP - Payments to Health Authorities","130199034","03/01/2018","Independent Living Service","Independent Living Service","R5101"
"Wolverhampton City Council","http://opendatacommunities.org/id/metropolitan-district-council/wolverhampton","708099","The Royal Wolverhampton Hospitals","0000212550","141,849.00","TPP - Public Health Contracts","130201438","26/01/2018","Contracts","Children 5-19","R5060"
"Wolverhampton City Council","http://opendatacommunities.org/id/metropolitan-district-council/wolverhampton","708099","The Royal Wolverhampton Hospitals","0000212552","1,776.00","TPP - Public Health Contracts","130201440","26/01/2018","Contracts","Alcohol and Drug","R5060"
"Wolverhampton City Council","http://opendatacommunities.org/id/metropolitan-district-council/wolverhampton","708099","The Royal Wolverhampton Hospitals","0000212568","8,917.00","TPP - Public Health Contracts","130201442","26/01/2018","Contracts","LA Role in Health Protection","R5060"
"Wolverhampton City Council","http://opendatacommunities.org/id/metropolitan-district-council/wolverhampton","708099","The Royal Wolverhampton Hospitals","0000212732","3,257.06","TPP - Nursing Care - Long Term","130201451","31/01/2018","Older People Care Purchasing","OP Care Purchasing (Spot Placements)","R5410"
"Wolverhampton City Council","http://opendatacommunities.org/id/metropolitan-district-council/wolverhampton","708099","The Royal Wolverhampton Hospitals","0000209407","776.58","TPP - Payments to Local Authorities","130192160","31/01/2018","Adults Assessment & Care Management West","Hospital Team","R5100"
"Wolverhampton City Council","http://opendatacommunities.org/id/metropolitan-district-council/wolverhampton","708099","The Royal Wolverhampton Hospitals","0000209321","500.50","TPP - Payments to Local Authorities","130191221","26/01/2018","Adults Assessment & Care Management West","Hospital Team","R5100"
"Wolverhampton City Council","http://opendatacommunities.org/id/metropolitan-district-council/wolverhampton","708099","The Royal Wolverhampton Hospitals","0000212629","2,517.17","TPP - Payments to Local Authorities","130201445","26/01/2018","Adults Assessment & Care Management West","Hospital Team","R5100"
"Wolverhampton City Council","http://opendatacommunities.org/id/metropolitan-district-council/wolverhampton","708099","The Royal Wolverhampton Hospitals","0000209405","503.43","TPP - Payments to Local Authorities","130192159","31/01/2018","Adults Assessment & Care Management West","Hospital Team","R5100"
"Wolverhampton City Council","http://opendatacommunities.org/id/metropolitan-district-council/wolverhampton","708099","The Royal Wolverhampton Hospitals","0000212730","8,881.00","TPP - Nursing Care - Long Term","130201449","31/01/2018","Older People Care Purchasing","OP Care Purchasing (Spot Placements)","R5410"
"Wolverhampton City Council","http://opendatacommunities.org/id/metropolitan-district-council/wolverhampton","708099","The Royal Wolverhampton Hospitals","0000212576","351,155.00","TPP - Public Health Contracts","130201443","26/01/2018","Contracts","Health Visiting 0-5 Year Olds","R5060"
"Wolverhampton City Council","http://opendatacommunities.org/id/metropolitan-district-council/wolverhampton","708099","The Royal Wolverhampton Hospitals","0000212555","2,497.00","TPP - Public Health Contracts","130201441","26/01/2018","Contracts","Healthy Start to Life","R5060"
"Wolverhampton City Council","http://opendatacommunities.org/id/metropolitan-district-council/wolverhampton","708099","The Royal Wolverhampton Hospitals","0000014148","-1,739.00","TPP - Payments to Local Authorities","130191398","26/01/2018","Adults Assessment & Care Management West","Hospital Team","R5100"
"Wolverhampton City Council","http://opendatacommunities.org/id/metropolitan-district-council/wolverhampton","708099","The Royal Wolverhampton Hospitals","0000212728","3,414.00","TPP - Nursing Care - Long Term","130201447","31/01/2018","Older People Care Purchasing","OP Care Purchasing (Spot Placements)","R5410"
"Wolverhampton City Council","http://opendatacommunities.org/id/metropolitan-district-council/wolverhampton","708099","The Royal Wolverhampton Hospitals","0000212729","7,958.00","TPP - Nursing Care - Long Term","130201448","31/01/2018","Older People Care Purchasing","OP Care Purchasing (Spot Placements)","R5410"
"Wolverhampton City Council","http://opendatacommunities.org/id/metropolitan-district-council/wolverhampton","708101","The Royal Wolverhampton School","P16280020180115","143.70","Client Allowances","190411903","17/01/2018","Looked After Children","LAC Transitions Team","R6301"
"Wolverhampton City Council","http://opendatacommunities.org/id/metropolitan-district-council/wolverhampton","708101","The Royal Wolverhampton School","P16220820180108","143.70","Client Allowances","190409340","10/01/2018","Looked After Children","LAC Transitions Team","R6301"
"Wolverhampton City Council","http://opendatacommunities.org/id/metropolitan-district-council/wolverhampton","708101","The Royal Wolverhampton School","P16184520180102","143.70","Client Allowances","190407191","03/01/2018","Looked After Children","LAC Transitions Team","R6301"
"Wolverhampton City Council","http://opendatacommunities.org/id/metropolitan-district-council/wolverhampton","708101","The Royal Wolverhampton School","P16401920180126","143.70","Client Allowances","190416389","31/01/2018","Looked After Children","LAC Transitions Team","R6301"
"Wolverhampton City Council","http://opendatacommunities.org/id/metropolitan-district-council/wolverhampton","708101","The Royal Wolverhampton School","P16346620180119","143.70","Client Allowances","190413897","24/01/2018","Looked After Children","LAC Transitions Team","R6301"
"Wolverhampton City Council","http://opendatacommunities.org/id/metropolitan-district-council/wolverhampton","708121","The Stationery Office Limited","27595919","184.50","Books","130202807","24/01/2018","Strategic Organisation Development","Global Budgets","R4309"
"Wolverhampton City Council","http://opendatacommunities.org/id/metropolitan-district-council/wolverhampton","708130","The Switch Project Limited","TSP19 - 18","990.00","TPP - Alternative Provision of Education","130202808","24/01/2018","Specialist Support","Alternative Provision","R5037"
"Wolverhampton City Council","http://opendatacommunities.org/id/metropolitan-district-council/wolverhampton","708134","The Terrence Higgins Trust","29002958","4,166.67","TPP - Home Care","130201452","26/01/2018","Head of Commissioning","Terence Higgins Trust","R5420"
"Wolverhampton City Council","http://opendatacommunities.org/id/metropolitan-district-council/wolverhampton","708176","Thompson Avc Limited","34535","400.00","Equipment - R & M","130203396","26/01/2018","Strategic Organisation Development","Blakenhall Community & Healthy Living Centre","R4003"
"Wolverhampton City Council","http://opendatacommunities.org/id/metropolitan-district-council/wolverhampton","708176","Thompson Avc Limited","34762","65.00","R&M - Departmental planned (external)","130202812","24/01/2018","Facilities Management","Hickman Avenue Depot","R2001"
"Wolverhampton City Council","http://opendatacommunities.org/id/metropolitan-district-council/wolverhampton","708176","Thompson Avc Limited","34757","17.20","Services - Security","130202811","24/01/2018","Headstart","Headstart Hubs","R4405"
"Wolverhampton City Council","http://opendatacommunities.org/id/metropolitan-district-council/wolverhampton","708176","Thompson Avc Limited","34746","65.00","R&M - Departmental planned (external)","130202810","24/01/2018","Facilities Management","Hickman Avenue Depot","R2001"
"Wolverhampton City Council","http://opendatacommunities.org/id/metropolitan-district-council/wolverhampton","708176","Thompson Avc Limited","34658","360.00","Computing - Licences","130201972","17/01/2018","Adult Education","ICT Services","R4535"
"Wolverhampton City Council","http://opendatacommunities.org/id/metropolitan-district-council/wolverhampton","708176","Thompson Avc Limited","34035","65.00","R&M - Departmental planned (external)","130203746","26/01/2018","Cleaning","Priory Green","R2001"
"Wolverhampton City Council","http://opendatacommunities.org/id/metropolitan-district-council/wolverhampton","708176","Thompson Avc Limited","34682","65.00","R&M - Departmental planned (external)","130203128","24/01/2018","Facilities Management","Culwell Street Depot","R2001"
"Wolverhampton City Council","http://opendatacommunities.org/id/metropolitan-district-council/wolverhampton","708176","Thompson Avc Limited","34555","65.00","R&M - Departmental planned (external)","130203397","26/01/2018","Facilities Management","Hickman Avenue Depot","R2001"
"Wolverhampton City Council","http://opendatacommunities.org/id/metropolitan-district-council/wolverhampton","708181","Thornley St Surgery","M2017Q315HL304NQ","70.00","TPP - Public Health Contracts","190416844","31/01/2018","Contracts","Healthy Lifestyles","R5060"
"Wolverhampton City Council","http://opendatacommunities.org/id/metropolitan-district-council/wolverhampton","708181","Thornley St Surgery","M2017Q315SHCIFIQ","650.00","TPP - Public Health Contracts","190416834","31/01/2018","Contracts","Sexual Health","R5060"
"Wolverhampton City Council","http://opendatacommunities.org/id/metropolitan-district-council/wolverhampton","708181","Thornley St Surgery","M2017Q3.15SHIUDRQ","125.00","TPP - Public Health Contracts","190416839","31/01/2018","Contracts","Sexual Health","R5060"
"Wolverhampton City Council","http://opendatacommunities.org/id/metropolitan-district-council/wolverhampton","708181","Thornley St Surgery","M2017Q3.15SHIURFQ","100.00","TPP - Public Health Contracts","190416840","31/01/2018","Contracts","Sexual Health","R5060"
"Wolverhampton City Council","http://opendatacommunities.org/id/metropolitan-district-council/wolverhampton","708181","Thornley St Surgery","M2017Q315SHCIFRQ","360.00","TPP - Public Health Contracts","190416835","31/01/2018","Contracts","Sexual Health","R5060"
"Wolverhampton City Council","http://opendatacommunities.org/id/metropolitan-district-council/wolverhampton","708181","Thornley St Surgery","M2017Q315HL1IHCQ","0.10","TPP - Public Health Contracts","190416842","31/01/2018","Contracts","Healthy Lifestyles","R5060"
"Wolverhampton City Council","http://opendatacommunities.org/id/metropolitan-district-council/wolverhampton","708181","Thornley St Surgery","M2017Q315HL304TQ","5.00","TPP - Public Health Contracts","190416845","31/01/2018","Contracts","Healthy Lifestyles","R5060"
"Wolverhampton City Council","http://opendatacommunities.org/id/metropolitan-district-council/wolverhampton","708181","Thornley St Surgery","FOS4029","100.00","Services - Professional Fees","190414749","24/01/2018","Looked After Children","Fostering Team & Allowances","R4400"
"Wolverhampton City Council","http://opendatacommunities.org/id/metropolitan-district-council/wolverhampton","708181","Thornley St Surgery","M2017Q315SHCIFBQ","240.00","TPP - Public Health Contracts","190416836","31/01/2018","Contracts","Sexual Health","R5060"
"Wolverhampton City Council","http://opendatacommunities.org/id/metropolitan-district-council/wolverhampton","708181","Thornley St Surgery","M2017Q315SHIUFRQ","125.00","TPP - Public Health Contracts","190416838","31/01/2018","Contracts","Sexual Health","R5060"
"Wolverhampton City Council","http://opendatacommunities.org/id/metropolitan-district-council/wolverhampton","708181","Thornley St Surgery","M2017Q315SHCHLAQ","264.00","TPP - Public Health Contracts","190416841","31/01/2018","Contracts","Sexual Health","R5060"
"Wolverhampton City Council","http://opendatacommunities.org/id/metropolitan-district-council/wolverhampton","708181","Thornley St Surgery","M2017Q315SHIUDFQ","700.00","TPP - Public Health Contracts","190416837","31/01/2018","Contracts","Sexual Health","R5060"
"Wolverhampton City Council","http://opendatacommunities.org/id/metropolitan-district-council/wolverhampton","708181","Thornley St Surgery","M2017Q315HL1IPRQ","2.00","TPP - Public Health Contracts","190416843","31/01/2018","Contracts","Healthy Lifestyles","R5060"
"Wolverhampton City Council","http://opendatacommunities.org/id/metropolitan-district-council/wolverhampton","708181","Thornley St Surgery","M2017Q315HL312TQ","45.00","TPP - Public Health Contracts","190416846","31/01/2018","Contracts","Healthy Lifestyles","R5060"
"Wolverhampton City Council","http://opendatacommunities.org/id/metropolitan-district-council/wolverhampton","708183","Thorpe Mill Limited","48845","2,755.00","Equipment - Purchase","130200854","17/01/2018","Independent Living Service","Independent Living Service","R4000"
"Wolverhampton City Council","http://opendatacommunities.org/id/metropolitan-district-council/wolverhampton","708185","Three Pines Building Co Limited","16/0410/DFG","3,966.20","Grants paid out","190411003","12/01/2018","","Disabled Facilities Grants","C5000"
"Wolverhampton City Council","http://opendatacommunities.org/id/metropolitan-district-council/wolverhampton","708185","Three Pines Building Co Limited","49696","9,885.49","Construction and Conversion","130200114","05/01/2018","","Adaptations for People with Disabilites","C1100"
"Wolverhampton City Council","http://opendatacommunities.org/id/metropolitan-district-council/wolverhampton","708185","Three Pines Building Co Limited","49708","-9,885.49","Construction and Conversion","130200115","05/01/2018","","Adaptations for People with Disabilites","C1100"
"Wolverhampton City Council","http://opendatacommunities.org/id/metropolitan-district-council/wolverhampton","708185","Three Pines Building Co Limited","49709","5,198.18","Construction and Conversion","130200116","05/01/2018","","Adaptations for People with Disabilites","C1100"
